Workbook

Sheet BUDGET-agregirani pokazateli
B3: =BUDGET!B12 -> Трявна
B4: наименование на разпоредителя с бюджет
B6: Б Ю Д ЖЕ Т - Н А Ч А Л Е Н П Л А Н 2 0 2 2
E10: Код по ЕБК | G10: от | H10: до
B11: Консолидирани бюджети и средства от ЕС | E11: =BUDGET!F12 -> 5704 | F11: За периода: от | G11: =BUDGET!E9 -> 2022-01-01 | H11: =BUDGET!F9 -> 2022-12-31
B12: ,,,,,,,,,,,,,,,,,,,,,,,,,,,,,,,,,,,,,,,,,,,,,,,,,,,,,,,,,,,,,,,,,,,,,,,,,,,,,,,,,,,,,,,,,,,,,,,,,,,,,,,,,,,,,,,,,,,,,,,,,,,,,,,,,,,,,,,,,,,,,,,,,,,,, | C12: код сметка: | E12: =BUDGET!E17 -> 0
I14: (в лв.)
B16: НАИМЕНОВАНИЕ | C16: §§ | E16: БЮДЖЕТ | G16: в т. ч.
B17: НА | F17: ОБЩО
B18: ПОКАЗАТЕЛИТЕ | G18: държавни дейности | H18: местни дейности | I18: дофинансиране
F20: (код 1) | G20: (код 2) | H20: (код 2) | I20: (код 2)
A22: 10 | B22: I. ПРИХОДИ, ПОМОЩИ И ДАРЕНИЯ | C22: §§ 01 - 48 | F22: =+G22+H22+I22 -> 0 | G22: =+G23+G25+G36+G37 -> 0 | H22: =+H23+H25+H36+H37 -> 0 | I22: =+I23+I25+I36+I37 -> 0
A23: 15 | B23: 1. Данъчни приходи | C23: §§ 01 - 20 | F23: 0 | G23: =BUDGET!F22+BUDGET!F28+BUDGET!F33+BUDGET!F39+BUDGET!F47+BUDGET!F52+BUDGET!F58+BUDGET!F61+BUDGET!F64+BUDGET!F65+BUDGET!F72+BUDGET!F73 -> 0 | H23: =BUDGET!G22+BUDGET!G28+BUDGET!G33+BUDGET!G39+BUDGET!G47+BUDGET!G52+BUDGET!G58+BUDGET!G61+BUDGET!G64+BUDGET!G65+BUDGET!G72+BUDGET!G73 -> 0 | I23: =BUDGET!H22+BUDGET!H28+BUDGET!H33+BUDGET!H39+BUDGET!H47+BUDGET!H52+BUDGET!H58+BUDGET!H61+BUDGET!H64+BUDGET!H65+BUDGET!H72+BUDGET!H73 -> 0
B24: в т. ч. трансфери за отчислени приходи | C24: § 65 | F24: 0
A25: 20 | B25: 2.Неданъчни приходи | C25: §§ 24 - 42 | F25: 0 | G25: =+G26+G30+G31+G32+G33 -> 0 | H25: =+H26+H30+H31+H32+H33 -> 0 | I25: =+I26+I30+I31+I32+I33 -> 0
A26: 25 | B26: 2.1 Приходи и доходи от собственост | C26: §24 | F26: 0 | G26: =BUDGET!F74 -> 0 | H26: =BUDGET!G74 -> 0 | I26: =BUDGET!H74 -> 0
A27: 26 | B27: в. ч. т. вноски от приходи на държавни и общински предприятия и институции | C27: под.§ 24-01 | F27: 0 | G27: =BUDGET!F75 -> 0 | H27: =BUDGET!G75 -> 0 | I27: =BUDGET!H75 -> 0
A28: 30 | B28: нетни приходи от продажба на услуги, стоки и продукция | C28: под.§ 24-04 | F28: 0 | G28: =BUDGET!F77 -> 0 | H28: =BUDGET!G77 -> 0 | I28: =BUDGET!H77 -> 0
A29: 35 | B29: приходи от наеми на имущество и земя | C29: под.§§ 24-05 и 24-06 | F29: 0 | G29: =+BUDGET!F78+BUDGET!F79 -> 0 | H29: =+BUDGET!G78+BUDGET!G79 -> 0 | I29: =+BUDGET!H78+BUDGET!H79 -> 0
A30: 40 | B30: 2.2 Приходи от такси | C30: §§ 25 - 27 | F30: 0 | G30: =BUDGET!F90+BUDGET!F93+BUDGET!F94 -> 0 | H30: =BUDGET!G90+BUDGET!G93+BUDGET!G94 -> 0 | I30: =BUDGET!H90+BUDGET!H93+BUDGET!H94 -> 0
A31: 45 | B31: 2.3 Глоби, санкции и наказателни лихви | C31: §28 | F31: 0 | G31: =BUDGET!F108 -> 0 | H31: =BUDGET!G108 -> 0 | I31: =BUDGET!H108 -> 0
A32: 50 | B32: 2.4 Други неданъчни приходи | C32: §§ 36 - 37 и §§ 41 - 42 | F32: 0 | G32: =BUDGET!F112+BUDGET!F121+BUDGET!F137+BUDGET!F138 -> 0 | H32: =BUDGET!G112+BUDGET!G121+BUDGET!G137+BUDGET!G138 -> 0 | I32: =BUDGET!H112+BUDGET!H121+BUDGET!H137+BUDGET!H138 -> 0
A33: 51 | B33: 2.5 Постъпления от продажба на нефинансови активи | C33: § 40 с изключение на под.§ 40-71 | F33: 0 | G33: =BUDGET!F125 -> 0 | H33: =BUDGET!G125 -> 0 | I33: =BUDGET!H125 -> 0
A34: 52 | F34: 0
F35: 0
A36: 60 | B36: 3. Помощи и дарения от страната | C36: § 45 | F36: 0 | G36: =+BUDGET!F139 -> 0 | H36: =+BUDGET!G139 -> 0 | I36: =+BUDGET!H139 -> 0
A37: 65 | B37: 4. Помощи и дарения от чужбина | C37: §§ 46 - 48 | F37: 0 | G37: =BUDGET!F142+BUDGET!F151+BUDGET!F160 -> 0 | H37: =BUDGET!G142+BUDGET!G151+BUDGET!G160 -> 0 | I37: =BUDGET!H142+BUDGET!H151+BUDGET!H160 -> 0
A38: 70 | B38: II. РАЗХОДИ | C38: §§ 01 - 57 | F38: 326140 | G38: =SUM(G40:G55)-G45-G47-G53-G54 -> 299781 | H38: =SUM(H40:H55)-H45-H47-H53-H54 -> 0 | I38: =SUM(I40:I55)-I45-I47-I53-I54 -> 26359
A39: 75 | B39: 1. Персонал | C39: §§ 1 - 8 | F39: =+G39+H39+I39 -> 312349 | G39: =SUM(G40:G42) -> 296617 | H39: =SUM(H40:H42) -> 0 | I39: =SUM(I40:I42) -> 15732
A40: 75 | B40: 1.1 Заплати и възнаграждения за персонала, нает по трудови и служебни прав. | C40: § 01 | F40: 245469 | G40: =BUDGET!F187 -> 240317 | H40: =BUDGET!G187 -> 0 | I40: =BUDGET!H187 -> 5152
A41: 80 | B41: 1.2. Други възнаграждения и плащания за персонала | C41: § 02 | F41: 10580 | G41: =BUDGET!F190 -> 0 | H41: =BUDGET!G190 -> 0 | I41: =BUDGET!H190 -> 10580
A42: 85 | B42: 1.3. Осигурителни вноски | C42: §§ 05 и 08 | F42: 56300 | G42: =+BUDGET!F196+BUDGET!F204 -> 56300 | H42: =+BUDGET!G196+BUDGET!G204 -> 0 | I42: =+BUDGET!H196+BUDGET!H204 -> 0
A43: 90 | B43: 2. Издръжка | C43: §§ 10; 19; 46 | F43: =+G43+H43+I43 -> 13791 | G43: =+BUDGET!F205+BUDGET!F223+BUDGET!F271 -> 3164 | H43: =+BUDGET!G205+BUDGET!G223+BUDGET!G271 -> 0 | I43: =+BUDGET!H205+BUDGET!H223+BUDGET!H271 -> 10627
A44: 95 | B44: 3. Лихви | C44: §§ 21 - 29 | F44: 0 | G44: =+BUDGET!F227+BUDGET!F233+BUDGET!F236+BUDGET!F237+BUDGET!F238+BUDGET!F239+BUDGET!F240 -> 0 | H44: =+BUDGET!G227+BUDGET!G233+BUDGET!G236+BUDGET!G237+BUDGET!G238+BUDGET!G239+BUDGET!G240 -> 0 | I44: =+BUDGET!H227+BUDGET!H233+BUDGET!H236+BUDGET!H237+BUDGET!H238+BUDGET!H239+BUDGET!H240 -> 0
A45: 100 | B45: в т. ч. външни | C45: §§ 25 - 28; 29-69/29-70 и 29-92 | F45: 0 | G45: =+BUDGET!F236+BUDGET!F237+BUDGET!F238+BUDGET!F239+BUDGET!F243+BUDGET!F244+BUDGET!E248 -> 0 | H45: =+BUDGET!G236+BUDGET!G237+BUDGET!G238+BUDGET!G239+BUDGET!G243+BUDGET!G244+BUDGET!F248 -> 0 | I45: =+BUDGET!H236+BUDGET!H237+BUDGET!H238+BUDGET!H239+BUDGET!H243+BUDGET!H244+BUDGET!G248 -> 0
A46: 105 | B46: 4. Социални разходи, стипендии | C46: §§ 39 - 42 | F46: 0 | G46: =+BUDGET!F255+BUDGET!F256+BUDGET!F257+BUDGET!F258 -> 0 | H46: =+BUDGET!G255+BUDGET!G256+BUDGET!G257+BUDGET!G258 -> 0 | I46: =+BUDGET!H255+BUDGET!H256+BUDGET!H257+BUDGET!H258 -> 0
A47: 106 | B47: в т. ч. стипендии | C47: § 40 | F47: 0 | G47: =+BUDGET!F256 -> 0 | H47: =+BUDGET!G256 -> 0 | I47: =+BUDGET!H256 -> 0
A48: 107 | B48: 5.Субсидии | C48: §§ 43 - 45 | F48: 0 | G48: =+BUDGET!F265+BUDGET!F269+BUDGET!F270 -> 0 | H48: =+BUDGET!G265+BUDGET!G269+BUDGET!G270 -> 0 | I48: =+BUDGET!H265+BUDGET!H269+BUDGET!H270 -> 0
A49: 108 | B49: 6. Придобиване на нeфинансови актииви | C49: §§ 51 - 54 | F49: 0 | G49: =BUDGET!F275+BUDGET!F276+BUDGET!F284+BUDGET!F287 -> 0 | H49: =BUDGET!G275+BUDGET!G276+BUDGET!G284+BUDGET!G287 -> 0 | I49: =BUDGET!H275+BUDGET!H276+BUDGET!H284+BUDGET!H287 -> 0
A50: 110 | B50: 7. Капиталови трансфери | C50: § 55 | F50: 0 | G50: =+BUDGET!F288 -> 0 | H50: =+BUDGET!G288 -> 0 | I50: =+BUDGET!H288 -> 0
A51: 115 | B51: 8. Предоставени текущи и капиталови трансфери за чужбина | C51: § 49 | F51: =+G51+H51+I51 -> 0 | G51: =+BUDGET!F272 -> 0 | H51: =+BUDGET!G272 -> 0 | I51: =+BUDGET!H272 -> 0
A52: 115 | B52: 9. Прираст на държавния резерв и изкупуване на земеделска продукция | C52: (+ § 57 - под.§ 40-71) | F52: 0 | G52: =+BUDGET!F293 -> 0 | H52: =+BUDGET!G293 -> 0 | I52: =+BUDGET!H293 -> 0
A53: 120 | B53: в т. ч. плащания за попълване на държавния резерв | C53: под.§;57-01 | F53: 0 | G53: =BUDGET!F294 -> 0 | H53: =BUDGET!G294 -> 0 | I53: =BUDGET!H294 -> 0
A54: 125 | B54: постъпления от продажби на държавния резерв (-) | C54: (-)под.§ 40-71 | F54: 0 | G54: =BUDGET!F296 -> 0 | H54: =BUDGET!G296 -> 0 | I54: =BUDGET!H296 -> 0
A55: 127 | B55: 10. Резерв за непредвидини и неотложни разходи | C55: §;00-98 | F55: 0 | G55: =+BUDGET!F297 -> 0 | H55: =+BUDGET!G297 -> 0 | I55: =+BUDGET!H297 -> 0
A56: 130 | B56: III. Трансфери | C56: §§ 30 - 31; 32; 60 - 67; 69; 74 - 78 | F56: =+G56+H56+I56 -> 326140 | G56: =+G57+G58+G62 -> 299781 | H56: =+H57+H58+H62 -> 26359 | I56: =+I57+I58+I62 -> 0
A57: 135 | B57: 1. Трансфери от/за ЦБ за/от други бюджети | C57: §§ 30 - 31; 60 | F57: 0 | G57: =+BUDGET!F361+BUDGET!F375+BUDGET!F388 -> 0 | H57: =+BUDGET!G361+BUDGET!G375+BUDGET!G388 -> 0 | I57: =+BUDGET!H361+BUDGET!H375+BUDGET!H388 -> 0
A58: 140 | B58: 2. Други трансфери | C58: §§ 32; 61- 67; 74 - 78 | F58: 326140 | G58: =+BUDGET!F383+BUDGET!F391+BUDGET!F396+BUDGET!F399+BUDGET!F402+BUDGET!F405+BUDGET!F406+BUDGET!F409+BUDGET!F422+BUDGET!F423+BUDGET!F424+BUDGET!F425+BUDGET!F426 -> 299781 | H58: =+BUDGET!G383+BUDGET!G391+BUDGET!G396+BUDGET!G399+BUDGET!G402+BUDGET!G405+BUDGET!G406+BUDGET!G409+BUDGET!G422+BUDGET!G423+BUDGET!G424+BUDGET!G425+BUDGET!G426 -> 26359 | I58: =+BUDGET!H383+BUDGET!H391+BUDGET!H396+BUDGET!H399+BUDGET!H402+BUDGET!H405+BUDGET!H406+BUDGET!H409+BUDGET!H422+BUDGET!H423+BUDGET!H424+BUDGET!H425+BUDGET!H426 -> 0
A59: 145 | B59: в т. ч. временни безлихвени заеми | C59: §§ 74 - 78 | F59: 0 | G59: =+BUDGET!F422+BUDGET!F423+BUDGET!F424+BUDGET!F425+BUDGET!F426 -> 0 | H59: =+BUDGET!G422+BUDGET!G423+BUDGET!G424+BUDGET!G425+BUDGET!G426 -> 0 | I59: =+BUDGET!H422+BUDGET!H423+BUDGET!H424+BUDGET!H425+BUDGET!H426 -> 0
A60: 150 | B60: трансфери за отчислени постъпления | C60: § 65 | F60: 0 | G60: =BUDGET!F405 -> 0 | H60: =BUDGET!G405 -> 0 | I60: =BUDGET!H405 -> 0
A61: 160 | F61: 0
A62: 162 | B62: 3. Трансфери за поети осигурителни вноски и данъци | C62: § 69 | F62: 0 | G62: =BUDGET!F412 -> 0 | H62: =BUDGET!G412 -> 0 | I62: =BUDGET!H412 -> 0
A63: 165 | B63: IV. Вноска в общия бюджет на ЕС | C63: § 33 | F63: 0 | G63: =+BUDGET!F249 -> 0 | H63: =+BUDGET!G249 -> 0 | I63: =+BUDGET!H249 -> 0
A64: 175 | B64: V. Дефицит / излишък = I - II +III + IV | F64: =+F22-F38+F56+F63 -> 0 | G64: =+G22-G38+G56+G63 -> 0 | H64: =+H22-H38+H56+H63 -> 26359 | I64: =+I22-I38+I56+I63 -> -26359
A65: 180 | B65: контрола | F65: =IF(ROUND(F64,0)+ROUND(F66,0)=0,"OK","Неправилен") -> OK
A66: 185 | B66: VI. Финансиране | C66: §§ 70 - 98 | F66: 0 | G66: =SUM(+G68+G76+G77+G84+G85+G86+G89+G90+G91+G92+G93+G94+G95) -> 0 | H66: =SUM(+H68+H76+H77+H84+H85+H86+H89+H90+H91+H92+H93+H94+H95) -> 0 | I66: =SUM(+I68+I76+I77+I84+I85+I86+I89+I90+I91+I92+I93+I94+I95) -> 0
A67: 190 | F67: 0
A68: 195 | B68: 1. Външно финансиране | C68: §§ 80 - 82; 92-01; 95-21/95-22; 95-28/95-29 и 95-49 | F68: 0 | G68: =SUM(G69:G75) -> 0 | H68: =SUM(H69:H75) -> 0 | I68: =SUM(I69:I75) -> 0
A69: 200 | B69: получени външни заеми | C69: под.§§ 80-11/80-12; 80-31/80-32; 80-51/80-52 и 80-97 | F69: 0 | G69: =+BUDGET!F482+BUDGET!F483+BUDGET!F486+BUDGET!F487+BUDGET!F490+BUDGET!F491+BUDGET!F495 -> 0 | H69: =+BUDGET!G482+BUDGET!G483+BUDGET!G486+BUDGET!G487+BUDGET!G490+BUDGET!G491+BUDGET!G495 -> 0 | I69: =+BUDGET!H482+BUDGET!H483+BUDGET!H486+BUDGET!H487+BUDGET!H490+BUDGET!H491+BUDGET!H495 -> 0
A70: 205 | B70: погашения по външни заеми | C70: под.§§ 80-17/80-18; 80-37/80-38; 80-57/80-58; 80-80 и 80-98; | F70: 0 | G70: =+BUDGET!F484+BUDGET!F485+BUDGET!F488+BUDGET!F489+BUDGET!F492+BUDGET!F493+BUDGET!F494+BUDGET!F496 -> 0 | H70: =+BUDGET!G484+BUDGET!G485+BUDGET!G488+BUDGET!G489+BUDGET!G492+BUDGET!G493+BUDGET!G494+BUDGET!G496 -> 0 | I70: =+BUDGET!H484+BUDGET!H485+BUDGET!H488+BUDGET!H489+BUDGET!H492+BUDGET!H493+BUDGET!H494+BUDGET!H496 -> 0
A71: 210 | B71: държавни /общински/ ЦК емитирани на м/нар. капиталови пазари | C71: § 81 | F71: 0 | G71: =+BUDGET!F497 -> 0 | H71: =+BUDGET!G497 -> 0 | I71: =+BUDGET!H497 -> 0
A72: 215 | B72: получени погашения по предоставени кредити от др, д/ви | C72: § 82 | F72: 0 | G72: =+BUDGET!F502 -> 0 | H72: =+BUDGET!G502 -> 0 | I72: =+BUDGET!H502 -> 0
A73: 220 | B73: операции с др. ЦК и финансови активи | C73: под. § 92-01 | F73: 0 | G73: =+BUDGET!F542 -> 0 | H73: =+BUDGET!G542 -> 0 | I73: =+BUDGET!H542 -> 0
A74: 230 | B74: остатък в лв.равн. по валутни сметки и каса в чужбина от предх. период | C74: под. §§ 95-21и 95-22 | F74: 0 | G74: =+BUDGET!F581+BUDGET!F582 -> 0 | H74: =+BUDGET!G581+BUDGET!G582 -> 0 | I74: =+BUDGET!H581+BUDGET!H582 -> 0
A75: 235 | B75: наличности в лв. равн.по валутни сметки и каса в чужб. в кр.на периода | C75: под. §§ 95-28/95-29 и 95-49 | F75: 0 | G75: =+BUDGET!F583+BUDGET!F584+BUDGET!F585 -> 0 | H75: =+BUDGET!G583+BUDGET!G584+BUDGET!G585 -> 0 | I75: =+BUDGET!H583+BUDGET!H584+BUDGET!H585 -> 0
A76: 240 | B76: 2. Придобиване на дялове, акции, съучастия и др, финансови активи | C76: § 70 | F76: 0 | G76: =BUDGET!F461 -> 0 | H76: =BUDGET!G461 -> 0 | I76: =BUDGET!H461 -> 0
A77: 245 | B77: 3. Възмездни средства | C77: §§ 71 - 73 и 79 | F77: 0 | G77: =SUM(G78:G83) -> 0 | H77: =SUM(H78:H83) -> 0 | I77: =SUM(I78:I83) -> 0
A78: 250 | B78: предоставени | C78: под. § 71-01 и § 72-01 | F78: 0 | G78: =+BUDGET!F466+BUDGET!F469 -> 0 | H78: =+BUDGET!G466+BUDGET!G469 -> 0 | I78: =+BUDGET!H466+BUDGET!H469 -> 0
A79: 260 | B79: възстановени | C79: под. § 71-02 и § 72-02 | F79: 0 | G79: =+BUDGET!F467+BUDGET!F470 -> 0 | H79: =+BUDGET!G467+BUDGET!G470 -> 0 | I79: =+BUDGET!H467+BUDGET!H470 -> 0
A80: 265 | B80: нето плащания по активирани гаранции, поръчителства и преоформен дълг | C80: § 73 | F80: 0 | G80: =BUDGET!F471 -> 0 | H80: =BUDGET!G471 -> 0 | I80: =BUDGET!H471 -> 0
F81: 0
A82: 270 | B82: предоставени заеми към крайни бенифициенти | C82: под. § 79-01 | F82: 0 | G82: =+BUDGET!F479 -> 0 | H82: =+BUDGET!G479 -> 0 | I82: =+BUDGET!H479 -> 0
A83: 275 | B83: възстановени суми по заеми от крайни бенифициенти | C83: под. § 79-02 | F83: 0 | G83: =+BUDGET!F480 -> 0 | H83: =+BUDGET!G480 -> 0 | I83: =+BUDGET!H480 -> 0
A84: 280 | B84: 4. Приватизация на дялове, акции и участия | C84: § 90 | F84: 0 | G84: =BUDGET!F535 -> 0 | H84: =BUDGET!G535 -> 0 | I84: =BUDGET!H535 -> 0
A85: 285 | B85: 5. Покупко-продажба на държавни/общински/ ценни книжа от бюджетните предприятия | C85: § 91 | F85: 0 | G85: =BUDGET!F536 -> 0 | H85: =BUDGET!G536 -> 0 | I85: =BUDGET!H536 -> 0
A86: 290 | B86: 6. Друго вътрешно финансиране | C86: §§ 83; 85 - 88; 92-02; 93 | F86: 0 | G86: =+G87+G88 -> 0 | H86: =+H87+H88 -> 0 | I86: =+I87+I88 -> 0
A87: 295 | B87: операции по вътрешен дълг и финан. активи- нето | C87: §§ 83; 85 - 86 и 92-02 | F87: 0 | G87: =+BUDGET!F503+BUDGET!F512+BUDGET!F516+BUDGET!F543 -> 0 | H87: =+BUDGET!G503+BUDGET!G512+BUDGET!G516+BUDGET!G543 -> 0 | I87: =+BUDGET!H503+BUDGET!H512+BUDGET!H516+BUDGET!H543 -> 0
A88: 300 | B88: друго финансиране | C88: §§ 87; 88 и 93 | F88: =+G88+H88+I88 -> 0 | G88: =+BUDGET!F521+BUDGET!F524+BUDGET!F544 -> 0 | H88: =+BUDGET!G521+BUDGET!G524+BUDGET!G544 -> 0 | I88: =+BUDGET!H521+BUDGET!H524+BUDGET!H544 -> 0
A89: 310 | B89: 7.Суми по разчети за поети осигур, вноски и данъци | C89: §89 | F89: 0 | G89: =BUDGET!F531 -> 0 | H89: =BUDGET!G531 -> 0 | I89: =BUDGET!H531 -> 0
A90: 320 | B90: 8. Наличности в началото на периода | C90: под. §§ 95-01 до 95-06 | F90: 0 | G90: =+BUDGET!F567+BUDGET!F568+BUDGET!F569+BUDGET!F570+BUDGET!F571+BUDGET!F572 -> 0 | H90: =+BUDGET!G567+BUDGET!G568+BUDGET!G569+BUDGET!G570+BUDGET!G571+BUDGET!G572 -> 0 | I90: =+BUDGET!H567+BUDGET!H568+BUDGET!H569+BUDGET!H570+BUDGET!H571+BUDGET!H572 -> 0
A91: 330 | B91: 9 Наличности в края на периода | C91: под. §§ 95-07 до 95-13 | F91: 0 | G91: =+BUDGET!F573+BUDGET!F574+BUDGET!F575+BUDGET!F576+BUDGET!F577+BUDGET!F578+BUDGET!F579 -> 0 | H91: =+BUDGET!G573+BUDGET!G574+BUDGET!G575+BUDGET!G576+BUDGET!G577+BUDGET!G578+BUDGET!G579 -> 0 | I91: =+BUDGET!H573+BUDGET!H574+BUDGET!H575+BUDGET!H576+BUDGET!H577+BUDGET!H578+BUDGET!H579 -> 0
A92: 335 | B92: 10. Преоценка на валутни наличности | C92: под. § 95-14 | F92: 0 | G92: =+BUDGET!F580 -> 0 | H92: =+BUDGET!G580 -> 0 | I92: =+BUDGET!H580 -> 0
A93: 340 | B93: 11. Депозити и сметки консолидирани в "Единната сметка" от предх. период | C93: под. §§ 96-01 до 96-03 | F93: 0 | G93: =+BUDGET!F587+BUDGET!F588 -> 0 | H93: =+BUDGET!G587+BUDGET!G588 -> 0 | I93: =+BUDGET!H587+BUDGET!H588 -> 0
A94: 345 | B94: 12. Депозити и сметки консолидирани в "Единната сметка" в края на периода | C94: под. §§ 96-07 до 96-09 | F94: 0 | G94: =+BUDGET!F589+BUDGET!F590 -> 0 | H94: =+BUDGET!G589+BUDGET!G590 -> 0 | I94: =+BUDGET!H589+BUDGET!H590 -> 0
A95: 350 | B95: 13. Касови операции, депозити, покупко-продажба на валута и сетълмент операции | C95: § 98 | F95: 0 | G95: =BUDGET!F591 -> 0 | H95: =BUDGET!G591 -> 0 | I95: =BUDGET!H591 -> 0
A96: 355 | B96: в т. ч. покупко-продажба на валута (+/-) | C96: под. § 98-30 | F96: 0 | G96: =+BUDGET!F594 -> 0 | H96: =+BUDGET!G594 -> 0 | I96: =+BUDGET!H594 -> 0
B97: ЧИСЛЕНОСТ НА ПЕРСОНАЛА
B98: Щатни бройки
B99: по трудови правоотношения
B100: по служебни правоотношения
B102: Средногодишни щатни бройки
B103: по трудови правоотношения
B104: по служебни правоотношения
B113: ИЗГОТВИЛ: ,,,,,,,,,,,,,,,,,,,,,,,,,,,,,,,,,,,,,,,,,,,,,,,,,,, | E113: РЪКОВОДИТЕЛ: …………………………
B114: (,,,,,,,,,,,,,,,,,,,,,,,,) | E114: (,,,,,,,,,,,,,,,,,,,,,)
B115: сл. тел.:,,,,,,,,,,,,,,,,,,,,,,,,,,,,,,,,, | E115: ГЛ.СЧЕТОВОДИТЕЛ: ………….……………..
E116: (,,,,,,,,,,,,,,,,,,,,,)

Sheet BUDGET
A1: a | B1: b | C1: c | D1: d | E1: e | F1: f | G1: f | H1: f | I1: f | J1: endprint | L1: h | M1: i | N1: j | O1: k | Q1: h | R1: i | S1: j | T1: k | U1: i | V1: j | W1: k
A2: 3 | J2: 1
B3: година | C3: 2022 | J3: 1
C4: 1.01 | J4: 1
J5: 1
J6: 1
B7: БЮДЖЕТ - НАЧАЛЕН ПЛАН ПО ПЪЛНА ЕДИННА БЮДЖЕТНА КЛАСИФИКАЦИЯ | J7: 1
E8: за периода от | F8: до | J8: 1
B9: ОУ "ВАСИЛ ЛЕВСКИ" ПЛАЧКОВЦИ | E9: =DATE($C$3,1,1) -> 2022-01-01 | F9: =DATE($C$3,12,31) -> 2022-12-31 | J9: 1
B10: (наименование на разпоредителя с бюджет) | J10: 1
J11: 1
B12: =VLOOKUP(F12,PRBK,2,FALSE) -> Трявна | E12: код : | F12: 5704 | J12: 1
B13: (наименование на първостепенния разпоредител с бюджет) | E13: (по ЕБК) | J13: 1
J14: 1
J15: 1
B16: =CONCATENATE("Бланка версия ",$C$4, " от ",$C$3,"г.") -> Бланка версия 1.01 от 2022г. | J16: 1
J17: 1
I18: (в лева) | J18: 1
D19: I. П Р И Х О Д И, П О М О Щ И И Д А Р Е Н И Я | E19: Уточнен план | F19: Бюджет | J19: 1
B20: §§ | C20: под-§§ | D20: Н А И М Е Н О В А Н И Е | E20: 2021 | F20: държавни дейности | G20: местни дейности | H20: дофинансиране | I20: Общо | J20: 1
D21: 0 1 ¦ | J21: 1
A22: 5 | B22: 100 | C22: Данък върху доходите на физически лица: | F22: =SUM(F23:F25,F26:F27) -> 0 | G22: =SUM(G23:G25,G26:G27) -> 0 | H22: =SUM(H23:H25,H26:H27) -> 0 | I22: =SUM(I23:I25,I26:I27) -> 0 | J22: =(IF($E22<>0,$J$2,IF($I22<>0,$J$2,""))) -> 
A23: 10 | C23: 101 | D23: от доходи по трудови, служебни и приравнени на тях правоотношения | F23: 0 | G23: 0 | H23: 0 | I23: =F23+G23+H23 -> 0 | J23: =(IF($E23<>0,$J$2,IF($I23<>0,$J$2,""))) -> 
A24: 15 | C24: 102 | D24: за доходи на еднолични търговци, свободни професии, извънтрудови правоотношения и др. | F24: 0 | G24: 0 | H24: 0 | I24: =F24+G24+H24 -> 0
A25: 20 | C25: 103 | D25: патентен данък и данък върху таксиметров превоз на пътници | F25: 0 | G25: 0 | H25: 0 | I25: =F25+G25+H25 -> 0
A26: 20 | C26: 108 | D26: окончателен данък върху доходите от лихви по банкови сметки на местните физически лица | F26: 0 | G26: 0 | H26: 0 | I26: =F26+G26+H26 -> 0
A27: 21 | C27: 109 | D27: окончателен данък върху доходи на местни и чуждестранни физически лица по чл. 37 и 38 от ЗДДФЛ | F27: 0 | G27: 0 | H27: 0 | I27: =F27+G27+H27 -> 0
A28: 25 | B28: 200 | C28: Корпоративен данък: | F28: =SUM(F29:F32) -> 0 | G28: =SUM(G29:G32) -> 0 | H28: =SUM(H29:H32) -> 0 | I28: =SUM(I29:I32) -> 0
A29: 30 | C29: 201 | D29: корпоративен данък от нефинансови предприятия | F29: 0 | G29: 0 | H29: 0 | I29: =F29+G29+H29 -> 0
A30: 35 | C30: 202 | D30: корпоративен данък от финансови институции | F30: 0 | G30: 0 | H30: 0 | I30: =F30+G30+H30 -> 0
A31: 40 | C31: 203 | D31: корпоративен данък от юридически лица с нестопанска цел | F31: 0 | G31: 0 | H31: 0 | I31: =F31+G31+H31 -> 0
A32: 45 | C32: 204 | D32: корпоративен данък от застрахователни дружества | F32: 0 | G32: 0 | H32: 0 | I32: =F32+G32+H32 -> 0
A33: 50 | B33: 400 | C33: Данъци върху дивидентите, ликвидационните дялове и доходите на местни и чуждестранни лица: | F33: =SUM(F34:F38) -> 0 | G33: =SUM(G34:G38) -> 0 | H33: =SUM(H34:H38) -> 0 | I33: =SUM(I34:I38) -> 0
A34: 55 | C34: 401 | D34: данък върху дивидентите и ликвидационните дялове на местни юридически лица | F34: 0 | G34: 0 | H34: 0 | I34: =F34+G34+H34 -> 0
A35: 56 | C35: 402 | D35: данък върху дивидентите и ликвидационните дялове на бюджетни предприятия | F35: 0 | G35: 0 | H35: 0 | I35: =F35+G35+H35 -> 0
A36: 57 | C36: 403 | D36: данък върху дивидентите и ликвидационните дялове на чуждестрани юридически лица | F36: 0 | G36: 0 | H36: 0 | I36: =F36+G36+H36 -> 0
A37: 58 | C37: 404 | D37: данък при източника върху доходи на чуждестранни юридически лица | F37: 0 | G37: 0 | H37: 0 | I37: =F37+G37+H37 -> 0
A38: 59 | C38: 411 | D38: данък върху дивидентите и ликвидационните дялове на физически лица | F38: 0 | G38: 0 | H38: 0 | I38: =F38+G38+H38 -> 0
A39: 65 | B39: 800 | C39: Осигурителни вноски | F39: =SUM(F40:F43) -> 0 | G39: =SUM(G40:G43) -> 0 | H39: =SUM(H40:H43) -> 0 | I39: =SUM(I40:I46) -> 0
A40: 70 | C40: 801 | D40: вноски за работници и служители от работодатели | F40: 0 | G40: 0 | H40: 0 | I40: =F40+G40+H40 -> 0
A41: 75 | C41: 802 | D41: вноски от работници и служители (лична вноска) | F41: 0 | G41: 0 | H41: 0 | I41: 0
A42: 80 | C42: 804 | D42: вноски от самонаети лица (самоосигуряващи се лица) | F42: 0 | G42: 0 | H42: 0 | I42: 0
A43: 85 | C43: 809 | D43: вноски за други категории осигурени лица | F43: 0 | G43: 0 | H43: 0 | I43: 0
C44: 811 | D44: вноски по чл. 4б и 4в от КСО за сметка на осигурителя | F44: 0 | G44: 0 | H44: 0 | I44: 0
C45: 812 | D45: вноски по чл. 4б от КСО за сметка на осигурените лица | F45: 0 | G45: 0 | H45: 0 | I45: 0
C46: 814 | D46: вноски по чл. 4б от КСО от самонаети лица (самоосигуряващи се лица) | F46: 0 | G46: 0 | H46: 0 | I46: 0
A47: 95 | B47: 1000 | C47: Здравно-осигурителни вноски | F47: =SUM(F48:F51) -> 0 | G47: =SUM(G48:G51) -> 0 | H47: =SUM(H48:H51) -> 0 | I47: =SUM(I48:I51) -> 0
A48: 100 | C48: 1001 | D48: здравно-осигурителни вноски за работници и служители от работодатели | F48: 0 | G48: 0 | H48: 0 | I48: =F48+G48+H48 -> 0
A49: 105 | C49: 1002 | D49: здравно-осигурителни вноски от работници и служители (лична вноска) | F49: 0 | G49: 0 | H49: 0 | I49: =F49+G49+H49 -> 0
A50: 110 | C50: 1004 | D50: здравно-осигурителни вноски от самонаети (самоосигуряващи се лица) | F50: 0 | G50: 0 | H50: 0 | I50: =F50+G50+H50 -> 0
A51: 125 | C51: 1007 | D51: здравно-осигур.вноски за други категории осигурени лица | F51: 0 | G51: 0 | H51: 0 | I51: =F51+G51+H51 -> 0
A52: 130 | B52: 1300 | C52: Имуществени и други местни данъци : | F52: =SUM(F53:F57) -> 0 | G52: =SUM(G53:G57) -> 0 | H52: =SUM(H53:H57) -> 0 | I52: =SUM(I53:I57) -> 0
A53: 135 | C53: 1301 | D53: данък върху недвижими имоти | F53: 0 | G53: 0 | H53: 0 | I53: =F53+G53+H53 -> 0
A54: 140 | C54: 1302 | D54: данък върху наследствата | F54: 0 | G54: 0 | H54: 0 | I54: =F54+G54+H54 -> 0
A55: 145 | C55: 1303 | D55: данък върху превозните средства | F55: 0 | G55: 0 | H55: 0 | I55: =F55+G55+H55 -> 0
C56: 1304 | D56: данък при придобиване на имущество по дарения и възмезден начин | F56: 0 | G56: 0 | H56: 0 | I56: =F56+G56+H56 -> 0
A57: 150 | C57: 1308 | D57: туристически данък | F57: 0 | G57: 0 | H57: 0 | I57: =F57+G57+H57 -> 0
A58: 160 | B58: 1400 | C58: Данък върху добавената стойност | F58: =SUM(F59:F60) -> 0 | G58: =SUM(G59:G60) -> 0 | H58: =SUM(H59:H60) -> 0 | I58: =SUM(I59:I60) -> 0
A59: 165 | C59: 1401 | D59: данък върху добавената стойност при сделки в страната | F59: 0 | G59: 0 | H59: 0 | I59: =F59+G59+H59 -> 0
A60: 170 | C60: 1402 | D60: данък върху добавената стойност при внос | F60: 0 | G60: 0 | H60: 0 | I60: =F60+G60+H60 -> 0
A61: 175 | B61: 1500 | C61: Акцизи | F61: =SUM(F62:F63) -> 0 | G61: =SUM(G62:G63) -> 0 | H61: =SUM(H62:H63) -> 0 | I61: =SUM(I62:I63) -> 0
A62: 180 | C62: 1501 | D62: акциз при сделки в страната | F62: 0 | G62: 0 | H62: 0 | I62: =F62+G62+H62 -> 0
A63: 185 | C63: 1502 | D63: акциз при внос | F63: 0 | G63: 0 | H63: 0 | I63: =F63+G63+H63 -> 0
B64: 1600 | C64: Данък върху застрахователните премии | F64: 0 | G64: 0 | H64: 0 | I64: =F64+G64+H64 -> 0
A65: 200 | B65: 1700 | C65: Други данъци по Закона за корпоративното подоходно облагане: | F65: =SUM(F66:F71) -> 0 | G65: =SUM(G66:G71) -> 0 | H65: =SUM(H66:H71) -> 0 | I65: =SUM(I66:I71) -> 0
A66: 205 | C66: 1701 | D66: данък върху представителните разходи | F66: 0 | G66: 0 | H66: 0 | I66: =F66+G66+H66 -> 0
A67: 210 | C67: 1702 | D67: данък върху разходи, предоставяни в натура | F67: 0 | G67: 0 | H67: 0 | I67: 0
A68: 215 | C68: 1703 | D68: данък върху разходите за превозни средства | F68: 0 | G68: 0 | H68: 0 | I68: 0
A69: 225 | C69: 1706 | D69: данък върху хазартната дейност | F69: 0 | G69: 0 | H69: 0 | I69: 0
A70: 226 | C70: 1707 | D70: данък върху дейността от опериране на кораби | F70: 0 | G70: 0 | H70: 0 | I70: 0
A71: 227 | C71: 1709 | D71: данък върху приходите на бюджетните предприятия | F71: 0 | G71: 0 | H71: 0 | I71: 0
A72: 235 | B72: 1900 | C72: Мита и митнически такси: | F72: 0 | G72: 0 | H72: 0 | I72: 0
A73: 255 | B73: 2000 | C73: Други данъци | F73: 0 | G73: 0 | H73: 0 | I73: 0
A74: 265 | B74: 2400 | C74: Приходи и доходи от собственост | F74: =SUM(F75:F89) -> 0 | G74: =SUM(G75:G89) -> 0 | H74: =SUM(H75:H89) -> 0 | I74: =SUM(I75:I89) -> 0
A75: 270 | C75: 2401 | D75: вноски от приходи на държавни (общински) предприятия и институции | F75: 0 | G75: 0 | H75: 0 | I75: =F75+G75+H75 -> 0
A76: 280 | C76: 2403 | D76: превишение на приходите над разходите на БНБ | F76: 0 | G76: 0 | H76: 0 | I76: =F76+G76+H76 -> 0
A77: 285 | C77: 2404 | D77: нетни приходи от продажби на услуги, стоки и продукция | F77: 0 | G77: 0 | H77: 0 | I77: 0
A78: 290 | C78: 2405 | D78: приходи от наеми на имущество | F78: 0 | G78: 0 | H78: 0 | I78: 0
A79: 295 | C79: 2406 | D79: приходи от наеми на земя | F79: 0 | G79: 0 | H79: 0 | I79: 0
A80: 300 | C80: 2407 | D80: приходи от дивиденти | F80: 0 | G80: 0 | H80: 0 | I80: 0
A81: 305 | C81: 2408 | D81: приходи от лихви по текущи банкови сметки | F81: 0 | G81: 0 | H81: 0 | I81: 0
A82: 310 | C82: 2409 | D82: приходи от лихви по срочни депозити | F82: 0 | G82: 0 | H82: 0 | I82: 0
A83: 315 | C83: 2410 | D83: приходи от лихви по предоставени заеми в страната и чужбина | F83: 0 | G83: 0 | H83: 0 | I83: 0
A84: 325 | C84: 2412 | D84: приходи от лихви от предприятия по преоформен държавен дълг | F84: 0 | G84: 0 | H84: 0 | I84: 0
A85: 330 | C85: 2413 | D85: приходи от лихви и отстъпки от държавни и общински ценни книжа | F85: 0 | G85: 0 | H85: 0 | I85: 0
A86: 335 | C86: 2415 | D86: приходи от лихви и отстъпки от дългови ценни книжа на местни и чуждестранни лица | F86: 0 | G86: 0 | H86: 0 | I86: 0
C87: 2417 | D87: приходи от лихви по заеми, предоставени на бюджетни организации | F87: 0 | G87: 0 | H87: 0 | I87: =F87+G87+H87 -> 0
A88: 340 | C88: 2418 | D88: лихви по срочни депозити за сметка на централния бюджет (+/-) | F88: 0 | G88: 0 | H88: 0 | I88: 0
A89: 345 | C89: 2419 | D89: приходи от други лихви | G89: 0 | H89: 0 | I89: 0
A90: 350 | B90: 2500 | C90: Държавни такси | F90: =SUM(F91:F92) -> 0 | G90: =SUM(G91:G92) -> 0 | H90: =SUM(H91:H92) -> 0 | I90: =SUM(I91:I92) -> 0 | J90: =(IF($E90<>0,$J$2,IF($I90<>0,$J$2,""))) -> 
A91: 355 | C91: 2501 | D91: такси за административни и други услуги и дейности | F91: 0 | H91: 0 | I91: =F91+G91+H91 -> 0
A92: 356 | C92: 2502 | D92: такси и лицензии с данъчен характер | F92: 0 | G92: 0 | H92: 0 | I92: =F92+G92+H92 -> 0
A93: 360 | B93: 2600 | C93: Съдебни такси | F93: 0 | G93: 0 | H93: 0 | I93: =F93+G93+H93 -> 0
A94: 370 | B94: 2700 | C94: Общински такси | F94: =SUM(F95:F107) -> 0 | G94: =SUM(G95:G107) -> 0 | H94: =SUM(H95:H107) -> 0 | I94: =SUM(I95:I107) -> 0
A95: 375 | C95: 2701 | D95: за ползване на детски градини | F95: 0 | G95: 0 | H95: 0 | I95: =F95+G95+H95 -> 0
A96: 380 | C96: 2702 | D96: за ползване на детски ясли и други по здравеопазването | F96: 0 | G96: 0 | H96: 0 | I96: 0
A97: 385 | C97: 2703 | D97: за ползване на лагери и други по социалния отдих | F97: 0 | G97: 0 | H97: 0 | I97: 0
A98: 390 | C98: 2704 | D98: за ползване на домашен социален патронаж и други общински социални услуги | F98: 0 | G98: 0 | H98: 0 | I98: 0
A99: 395 | C99: 2705 | D99: за ползване на пазари, тържища, панаири, тротоари, улични платна и др. | F99: 0 | G99: 0 | H99: 0 | I99: 0
A100: 400 | C100: 2706 | D100: за ползване на полудневни детски градини | F100: 0 | G100: 0 | H100: 0 | I100: 0
A101: 405 | C101: 2707 | D101: за битови отпадъци | F101: 0 | G101: 0 | H101: 0 | I101: 0
A102: 410 | C102: 2708 | D102: за ползване на общежития и други по образованието | F102: 0 | G102: 0 | H102: 0 | I102: 0
A103: 420 | C103: 2710 | D103: за технически услуги | F103: 0 | G103: 0 | H103: 0 | I103: 0
A104: 425 | C104: 2711 | D104: за административни услуги | F104: 0 | G104: 0 | H104: 0 | I104: 0
A105: 430 | C105: 2715 | D105: за откупуване на гробни места | F105: 0 | G105: 0 | H105: 0 | I105: 0
A106: 436 | C106: 2717 | D106: за притежаване на куче | F106: 0 | G106: 0 | H106: 0 | I106: 0
A107: 440 | C107: 2729 | D107: други общински такси | F107: 0 | G107: 0 | H107: 0 | I107: 0
A108: 445 | B108: 2800 | C108: Глоби, санкции и наказателни лихви | F108: =+F109+F110+F111 -> 0 | G108: =+G109+G110+G111 -> 0 | H108: =+H109+H110+H111 -> 0 | I108: =SUM(I109:I111) -> 0
A109: 450 | C109: 2801 | D109: конфискувани средства и приходи от продажби на конфискувани и придобити от залог вещи | F109: 0 | G109: 0 | H109: 0 | I109: =F109+G109+H109 -> 0
A110: 455 | C110: 2802 | D110: глоби, санкции, неустойки, наказателни лихви, обезщетения и начети | F110: 0 | G110: 0 | H110: 0 | I110: =F110+G110+H110 -> 0
A111: 455 | C111: 2809 | D111: наказателни лихви за данъци, мита и осигурителни вноски | F111: 0 | G111: 0 | H111: 0 | I111: =F111+G111+H111 -> 0
A112: 470 | B112: 3600 | C112: Други приходи | F112: =SUM(F113:F120) -> 0 | G112: =SUM(G113:G120) -> 0 | H112: =SUM(H113:H120) -> 0 | I112: =SUM(I113:I120) -> 0
A113: 475 | C113: 3601 | D113: реализирани курсови разлики от валутни операции (нето) (+/-) | F113: 0 | G113: 0 | H113: 0 | I113: =F113+G113+H113 -> 0
C114: 3605 | D114: прехвърлени/възстановени акумулирани средства от осигурителни вноски | F114: 0 | G114: 0 | H114: 0 | I114: 0
C115: 3608 | D115: вноски за фонд "ИЕЯС" и фонд "РАО" | F115: 0 | G115: 0 | H115: 0 | I115: =F115+G115+H115 -> 0
C116: 3610 | D116: приходи от други вноски | H116: 0 | I116: 0
A117: 480 | C117: 3611 | D117: получени застрахователни обезщетения за ДМА | G117: 0 | H117: 0 | I117: 0
A118: 485 | C118: 3612 | D118: получени други застрахователни обезщетения | F118: 0 | G118: 0 | H118: 0 | I118: 0
C119: 3618 | D119: коректив за касови постъпления (-/+) | F119: 0 | G119: 0 | H119: 0 | I119: 0
A120: 490 | C120: 3619 | D120: други неданъчни приходи | F120: 0 | G120: 0 | H120: 0 | I120: 0
A121: 495 | B121: 3700 | C121: Внесени ДДС и други данъци върху продажбите | F121: =SUM(F122:F124) -> 0 | G121: =SUM(G122:G124) -> 0 | H121: =SUM(H122:H124) -> 0 | I121: =SUM(I122:I124) -> 0
A122: 500 | C122: 3701 | D122: внесен ДДС (-) | F122: 0 | G122: 0 | H122: 0 | I122: =F122+G122+H122 -> 0
A123: 505 | C123: 3702 | D123: внесен данък върху приходите от стопанска дейност на бюджетните предприятия (-) | F123: 0 | G123: 0 | H123: 0 | I123: =F123+G123+H123 -> 0
A124: 510 | C124: 3709 | D124: внесени други данъци,такси и вноски върху продажбите (-) | F124: 0 | G124: 0 | H124: 0 | I124: =F124+G124+H124 -> 0
A125: 515 | B125: 4000 | C125: Постъпления от продажба на нефинансови активи (без 40-71) | F125: =SUM(F126:F136) -> 0 | G125: =SUM(G126:G136) -> 0 | H125: =SUM(H126:H136) -> 0 | I125: =SUM(I126:I136) -> 0
A126: 516 | C126: 4021 | D126: постъпления от продажба на компютри и хардуер | F126: 0 | G126: 0 | H126: 0 | I126: =F126+G126+H126 -> 0
A127: 517 | C127: 4022 | D127: постъпления от продажба на сгради | F127: 0 | G127: 0 | H127: 0 | I127: 0
A128: 518 | C128: 4023 | D128: постъпления от продажба на друго оборудване, машини и съоръжения | F128: 0 | G128: 0 | H128: 0 | I128: 0
A129: 519 | C129: 4024 | D129: постъпления от продажба на транспортни средства | F129: 0 | G129: 0 | H129: 0 | I129: 0
A130: 520 | C130: 4025 | D130: постъпления от продажба на стопански инвентар | F130: 0 | G130: 0 | H130: 0 | I130: 0
A131: 521 | C131: 4026 | D131: постъпления от продажба на инфраструктурни обекти | G131: 0 | H131: 0 | I131: 0
A132: 522 | C132: 4029 | D132: постъпления от продажба на други ДМА | F132: 0 | G132: 0 | H132: 0 | I132: 0
A133: 523 | C133: 4030 | D133: постъпления от продажба на нематериални дълготрайни активи | F133: 0 | G133: 0 | H133: 0 | I133: 0
A134: 523 | C134: 4039 | D134: постъпления от продажба на квоти за емисии на парникови газове | F134: 0 | G134: 0 | H134: 0 | I134: 0
A135: 524 | C135: 4040 | D135: постъпления от продажба на земя | F135: 0 | G135: 0 | H135: 0 | I135: 0
A136: 526 | C136: 4072 | D136: постъпления от продажба на земеделска продукция | F136: 0 | G136: 0 | H136: 0 | I136: 0
A137: 540 | B137: 4100 | C137: Приходи от концесии | F137: 0 | G137: 0 | I137: 0
A138: 550 | B138: 4200 | C138: Приходи от лицензии за ползване на държавни/общински активи | F138: 0 | G138: 0 | H138: 0 | I138: 0
A139: 560 | B139: 4500 | C139: Помощи и дарения от страната | F139: =SUM(F140:F141) -> 0 | G139: =SUM(G140:G141) -> 0 | H139: =SUM(H140:H141) -> 0 | I139: =SUM(I140:I141) -> 0
A140: 565 | C140: 4501 | D140: текущи помощи и дарения от страната | F140: 0 | G140: 0 | H140: 0 | I140: =F140+G140+H140 -> 0
A141: 570 | C141: 4503 | D141: капиталови помощи и дарения от страната | F141: 0 | G141: 0 | H141: 0 | I141: =F141+G141+H141 -> 0
A142: 575 | B142: 4600 | C142: Помощи и дарения от чужбина | F142: =SUM(F143:F150) -> 0 | G142: =SUM(G143:G150) -> 0 | H142: =SUM(H143:H150) -> 0 | I142: =SUM(I143:I150) -> 0
A143: 580 | C143: 4610 | D143: текущи помощи и дарения от Европейския съюз | F143: 0 | G143: 0 | H143: 0 | I143: =F143+G143+H143 -> 0
A144: 585 | C144: 4620 | D144: капиталови помощи и дарения от Европейския съюз | F144: 0 | G144: 0 | H144: 0 | I144: 0
A145: 590 | C145: 4630 | D145: текущи помощи и дарения от други държави | F145: 0 | G145: 0 | H145: 0 | I145: 0
A146: 595 | C146: 4640 | D146: капиталови помощи и дарения от други държави | F146: 0 | G146: 0 | H146: 0 | I146: 0
A147: 600 | C147: 4650 | D147: текущи помощи и дарения от други международни организации | F147: 0 | G147: 0 | H147: 0 | I147: 0
A148: 605 | C148: 4660 | D148: капиталови помощи и дарения от други международни организации | F148: 0 | G148: 0 | H148: 0 | I148: 0
A149: 610 | C149: 4670 | D149: други текущи помощи и дарения от чужбина | F149: 0 | G149: 0 | H149: 0 | I149: 0
A150: 615 | C150: 4680 | D150: други капиталови помощи и дарения от чужбина | F150: 0 | G150: 0 | H150: 0 | I150: 0
A151: 575 | B151: 4700 | C151: Получени чрез небюджетни предприятия средства от КФП по международни и други програми | F151: =SUM(F152:F159) -> 0 | G151: =SUM(G152:G159) -> 0 | H151: =SUM(H152:H159) -> 0 | I151: =SUM(I152:I159) -> 0
A152: 580 | C152: 4743 | D152: получени чрез нефинансови предприятия текущи трансфери от КФП по международни и други програми | H152: 0 | I152: =F152+G152+H152 -> 0
A153: 585 | C153: 4744 | D153: получени чрез финансови институции текущи трансфери от КФП по международни и други програми | H153: 0 | I153: 0
A154: 590 | C154: 4745 | D154: получени чрез нестопански организации текущи трансфери от КФП по международни и други програми | H154: 0 | I154: 0
A155: 595 | C155: 4749 | D155: получени чрез предприятия от чужбина текущи трансфери от КФП по международни и други програми | H155: 0 | I155: 0
A156: 600 | C156: 4751 | D156: получени чрез нефинансови предприятия капиталови трансфери от КФП по международни и други програми | H156: 0 | I156: 0
A157: 605 | C157: 4752 | D157: получени чрез финансови институции капиталови трансфери от КФП по международни и други програми | H157: 0 | I157: 0 | J157: =(IF($E157<>0,$J$2,IF($I157<>0,$J$2,""))) -> 
A158: 610 | C158: 4753 | D158: получени чрез нестопански организации капиталови трансфери от КФП по международни и други програми | H158: 0 | I158: 0
A159: 615 | C159: 4759 | D159: получени чрез предприятия от чужбина капиталови трансфери от КФП по международни и други програми | H159: 0 | I159: 0
A160: 575 | B160: 4800 | C160: Разпределени към администратори от чужбина средства по международни програми и договори (-) | F160: =SUM(F161:F168) -> 0 | G160: =SUM(G161:G168) -> 0 | H160: =SUM(H161:H168) -> 0 | I160: =SUM(I161:I168) -> 0
A161: 580 | C161: 4810 | D161: разпределени към чужбина текущи трансфери по програми на Европейския съюз (-) | F161: 0 | G161: 0 | H161: 0 | I161: =F161+G161+H161 -> 0
A162: 585 | C162: 4820 | D162: разпределени към чужбина капиталови трансфери по програми на Европейския съюз (-) | F162: 0 | G162: 0 | H162: 0 | I162: 0
A163: 590 | C163: 4830 | D163: разпределени към чужбина текущи трансфери по програми на други държави (-) | F163: 0 | G163: 0 | H163: 0 | I163: 0
A164: 595 | C164: 4840 | D164: разпределени към чужбина капиталови трансфери по програми на други държави (-) | F164: 0 | G164: 0 | H164: 0 | I164: 0
A165: 600 | C165: 4850 | D165: разпределени към чужбина текущи трансфери по програми на други международни организации (-) | F165: 0 | G165: 0 | H165: 0 | I165: 0
A166: 605 | C166: 4860 | D166: разпределени към чужбина капиталови трансфери по програми на други международни организации (-) | F166: 0 | G166: 0 | H166: 0 | I166: 0
A167: 610 | C167: 4870 | D167: разпределени към чужбина текущи трансфери по други чуждестранни дарения и помощи (-) | F167: 0 | G167: 0 | H167: 0 | I167: 0
A168: 615 | C168: 4880 | D168: разпределени към чужбина капиталови трансфери по други чуждестранни дарения и помощи (-) | F168: 0 | G168: 0 | H168: 0 | I168: 0
A169: 620 | C169: 99-99 | D169: I. В С И Ч К О П Р И Х О Д И, П О М О Щ И И Д А Р Е Н И Я | F169: =SUM(F22,F28,F33,F39,F47,F52,F58,F61,F64,F65,F72,F73,F74,F90,F93,F94,F108,F112,F121,F125,F137,F138,F139,F142,F151,F160) -> 0 | G169: =SUM(G22,G28,G33,G39,G47,G52,G58,G61,G64,G65,G72,G73,G74,G90,G93,G94,G108,G112,G121,G125,G137,G138,G139,G142,G151,G160) -> 0 | H169: =SUM(H22,H28,H33,H39,H47,H52,H58,H61,H64,H65,H72,H73,H74,H90,H93,H94,H108,H112,H121,H125,H137,H138,H139,H142,H151,H160) -> 0 | I169: =SUM(I22,I28,I33,I39,I47,I52,I58,I61,I64,I65,I72,I73,I74,I90,I93,I94,I108,I112,I121,I125,I137,I138,I139,I142,I151,I160) -> 0 | J169: 1
A170: 113 | D170: в т.ч.данък върху таксиметров превоз на пътници | F170: 0 | H170: 0 | I170: 0 | J170: 1
J171: 1
J172: 1
J173: 1
B174: =$B$7 -> БЮДЖЕТ - НАЧАЛЕН ПЛАН ПО ПЪЛНА ЕДИННА БЮДЖЕТНА КЛАСИФИКАЦИЯ | J174: 1
E175: за периода от | F175: до | J175: 1
B176: =$B$9 -> ОУ "ВАСИЛ ЛЕВСКИ" ПЛАЧКОВЦИ | E176: =$E$9 -> 2022-01-01 | F176: =$F$9 -> 2022-12-31 | J176: 1
B177: =$B$10 -> (наименование на разпоредителя с бюджет) | F177: =$F$10 -> 0 | J177: 1
J178: 1
B179: =$B$12 -> Трявна | E179: код : | F179: =$F$12 -> 5704 | J179: 1
B180: =$B$13 -> (наименование на първостепенния разпоредител с бюджет) | E180: (по ЕБК) | J180: 1
J181: 1
I182: (в лева) | J182: 1 | L182: І. Информация за задължения | O182: (в лева) | Q182: ІІ. Информация за поети ангажименти | W182: (в лева)
D183: II. РАЗХОДИ - РЕКАПИТУЛАЦИЯ ПО ПАРАГРАФИ И ПОДПАРАГРАФИ | F183: Бюджет | J183: 1 | L183: Налични към 31.12.2021 г. задължения | M183: Възникнали през 2022 г. задължения | N183: Платени през 2022 г. задължения | O183: Неплатени задължения към края на периода | Q183: Налични ангажименти към 31.12.2021 г. | R183: Поети ангажименти през 2022 г. | S183: Реализирани/из-пълнени през 2022 г. ангажименти | T183: Налични ангажименти към края на отчетния период. | U183: От тях подлежащи на плащане през: | X183: Контрола
B184: §§ | C184: под-§§ | D184: НАИМЕНОВАНИЕ НА ПАРАГРАФИТЕ И ПОДПАРАГРАФИТЕ | F184: =+F20 -> държавни дейности | G184: =+G20 -> местни дейности | H184: =+H20 -> дофинансиране | I184: =+I20 -> Общо | J184: 1 | U184: =$C$3 -> 2022 | V184: =$C$3+1 -> 2023 | W184: =CONCATENATE("след ",$C$3+1) -> след 2023
D185: 02 ¦ | J185: 1 | L185: І. (а) | M185: І. (б) | N185: І. (в) | O185: І. (г) | Q185: ІІ. (1) | R185: ІІ. (2) | S185: ІІ. (3) | T185: ІІ. (4) | U185: ІІ (4а) | V185: ІІ (4б) | W185: ІІ(4в) | X185: (5)
J186: 1 | L186: попълва се на ръка | M186: попълва се на ръка | N186: формула = колона (2) Отчет | O186: формула = І. (а) + І. (б) - І. (в) | Q186: попълва се на ръка | R186: попълва се на ръка | S186: формула (логическа) - изчислява по-голя-мото число от коло-ните (2) Отчет и ІІб | T186: формула = ІІ. (1) + ІІ. (2) - ІІ. (3) | U186: попълва се на ръка | V186: попълва се на ръка | W186: попълва се на ръка | X186: Формула = + ІІ. (4) - ІІ. (4а) - ІІ. (4б) - ІІ. (4в) = 0, при коректно попълване на данните
A187: 5 | B187: 100 | C187: Заплати и възнаграждения за персонала, нает по трудови и служебни правоотношения | F187: =SUMIF($B$607:$B$12312,$B187,F$607:F$12312) -> 240317 | G187: =SUMIF($B$607:$B$12312,$B187,G$607:G$12312) -> 0 | H187: =SUMIF($B$607:$B$12312,$B187,H$607:H$12312) -> 5152 | I187: =SUMIF($B$607:$B$12312,$B187,I$607:I$12312) -> 245469 | J187: =(IF($E187<>0,$J$2,IF($I187<>0,$J$2,""))) -> 1 | L187: =SUMIF($B$607:$B$12312,$B187,L$607:L$12312) -> 0 | M187: =SUMIF($B$607:$B$12312,$B187,M$607:M$12312) -> 0 | N187: =SUMIF($B$607:$B$12312,$B187,N$607:N$12312) -> 245469 | O187: =SUMIF($B$607:$B$12312,$B187,O$607:O$12312) -> -245469 | Q187: =SUMIF($B$607:$B$12312,$B187,Q$607:Q$12312) -> 0 | R187: 0 | S187: 0 | T187: 0 | U187: 0 | V187: 0 | W187: 0 | X187: =T187-U187-V187-W187 -> 0
A188: 10 | C188: 101 | D188: заплати и възнаграждения на персонала нает по трудови правоотношения | F188: =SUMIF($C$607:$C$12312,$C188,F$607:F$12312) -> 240317 | G188: 0 | H188: 5152 | I188: 245469 | J188: 1 | L188: =SUMIF($C$607:$C$12312,$C188,L$607:L$12312) -> 0 | M188: 0 | N188: 245469 | O188: -245469 | Q188: =SUMIF($C$607:$C$12312,$C188,Q$607:Q$12312) -> 0 | R188: 0 | S188: 0 | T188: 0 | U188: 0 | V188: 0 | W188: 0 | X188: =T188-U188-V188-W188 -> 0
A189: 15 | C189: 102 | D189: заплати и възнаграждения на персонала нает по служебни правоотношения | F189: 0 | G189: 0 | H189: 0 | I189: 0 | L189: 0 | M189: 0 | N189: 0 | O189: 0 | Q189: 0 | R189: 0 | S189: 0 | T189: 0 | U189: 0 | V189: 0 | W189: 0 | X189: 0
A190: 35 | B190: 200 | C190: Други възнаграждения и плащания за персонала | F190: =SUMIF($B$607:$B$12312,$B190,F$607:F$12312) -> 0 | G190: =SUMIF($B$607:$B$12312,$B190,G$607:G$12312) -> 0 | H190: =SUMIF($B$607:$B$12312,$B190,H$607:H$12312) -> 10580 | I190: =SUMIF($B$607:$B$12312,$B190,I$607:I$12312) -> 10580 | J190: 1 | L190: =SUMIF($B$607:$B$12312,$B190,L$607:L$12312) -> 0 | M190: =SUMIF($B$607:$B$12312,$B190,M$607:M$12312) -> 0 | N190: =SUMIF($B$607:$B$12312,$B190,N$607:N$12312) -> 10580 | O190: =SUMIF($B$607:$B$12312,$B190,O$607:O$12312) -> -10580 | Q190: =SUMIF($B$607:$B$12312,$B190,Q$607:Q$12312) -> 0 | R190: 0 | S190: 0 | T190: 0 | U190: 0 | V190: 0 | W190: 0 | X190: 0
A191: 40 | C191: 201 | D191: за нещатен персонал нает по трудови правоотношения | F191: =SUMIF($C$607:$C$12312,$C191,F$607:F$12312) -> 0 | G191: 0 | H191: 0 | I191: 0 | L191: =SUMIF($C$607:$C$12312,$C191,L$607:L$12312) -> 0 | M191: 0 | N191: 0 | O191: 0 | Q191: =SUMIF($C$607:$C$12312,$C191,Q$607:Q$12312) -> 0 | R191: 0 | S191: 0 | T191: 0 | U191: 0 | V191: 0 | W191: 0 | X191: 0
A192: 45 | C192: 202 | D192: за персонала по извънтрудови правоотношения | F192: 0 | G192: 0 | H192: 500 | I192: 500 | J192: 1 | L192: 0 | M192: 0 | N192: 500 | O192: -500 | Q192: 0 | R192: 0 | S192: 0 | T192: 0 | U192: 0 | V192: 0 | W192: 0 | X192: 0
A193: 50 | C193: 205 | D193: изплатени суми от СБКО за облекло и други на персонала, с характер на възнаграждение | F193: 0 | G193: 0 | H193: 9580 | I193: 9580 | J193: 1 | L193: 0 | M193: 0 | N193: 9580 | O193: -9580 | Q193: 0 | R193: 0 | S193: 0 | T193: 0 | U193: 0 | V193: 0 | W193: 0 | X193: 0
A194: 55 | C194: 208 | D194: обезщетения за персонала, с характер на възнаграждение | F194: 0 | G194: 0 | H194: 0 | I194: 0 | L194: 0 | M194: 0 | N194: 0 | O194: 0 | Q194: 0 | R194: 0 | S194: 0 | T194: 0 | U194: 0 | V194: 0 | W194: 0 | X194: 0
A195: 60 | C195: 209 | D195: другиплащания и възнаграждения | F195: 0 | G195: 0 | H195: 500 | I195: 500 | J195: 1 | L195: 0 | M195: 0 | N195: 500 | O195: -500 | Q195: 0 | R195: 0 | S195: 0 | T195: 0 | U195: 0 | V195: 0 | W195: 0 | X195: 0
A196: 65 | B196: 500 | C196: Задължителни осигурителни вноски от работодатели | F196: =SUMIF($B$607:$B$12312,$B196,F$607:F$12312) -> 56300 | G196: =SUMIF($B$607:$B$12312,$B196,G$607:G$12312) -> 0 | H196: =SUMIF($B$607:$B$12312,$B196,H$607:H$12312) -> 0 | I196: =SUMIF($B$607:$B$12312,$B196,I$607:I$12312) -> 56300 | J196: 1 | L196: =SUMIF($B$607:$B$12312,$B196,L$607:L$12312) -> 0 | M196: =SUMIF($B$607:$B$12312,$B196,M$607:M$12312) -> 0 | N196: =SUMIF($B$607:$B$12312,$B196,N$607:N$12312) -> 56300 | O196: =SUMIF($B$607:$B$12312,$B196,O$607:O$12312) -> -56300 | Q196: =SUMIF($B$607:$B$12312,$B196,Q$607:Q$12312) -> 0 | R196: 0 | S196: 0 | T196: 0 | U196: 0 | V196: 0 | W196: 0 | X196: 0
A197: 70 | C197: 551 | D197: осигурителни вноски от работодатели за Държавното обществено осигуряване (ДОО) | F197: =SUMIF($C$607:$C$12312,$C197,F$607:F$12312) -> 28030 | G197: 0 | H197: 0 | I197: 28030 | J197: 1 | L197: =SUMIF($C$607:$C$12312,$C197,L$607:L$12312) -> 0 | M197: 0 | N197: 28030 | O197: -28030 | Q197: =SUMIF($C$607:$C$12312,$C197,Q$607:Q$12312) -> 0 | R197: 0 | S197: 0 | T197: 0 | U197: 0 | V197: 0 | W197: 0 | X197: 0
A198: 75 | C198: 552 | D198: осигурителни вноски от работодатели за Учителския пенсионен фонд (УПФ) | F198: 9617 | G198: 0 | H198: 0 | I198: 9617 | J198: 1 | L198: 0 | M198: 0 | N198: 9617 | O198: -9617 | Q198: 0 | R198: 0 | S198: 0 | T198: 0 | U198: 0 | V198: 0 | W198: 0 | X198: 0
C199: 558 | D199: вноски по чл. 4б и 4в от КСО за сметка на осигурителя | F199: 0 | G199: 0 | H199: 0 | I199: 0 | L199: 0 | M199: 0 | N199: 0 | O199: 0 | Q199: 0 | R199: 0 | S199: 0 | T199: 0 | U199: 0 | V199: 0 | W199: 0 | X199: =T199-U199-V199-W199 -> 0
A200: 80 | C200: 560 | D200: здравно-осигурителни вноски от работодатели | F200: 11781 | G200: 0 | H200: 0 | I200: 11781 | J200: 1 | L200: 0 | M200: 0 | N200: 11781 | O200: -11781 | Q200: 0 | R200: 0 | S200: 0 | T200: 0 | U200: 0 | V200: 0 | W200: 0 | X200: 0
... 4259 more rows

Sheet INF (hidden)
A1: step | B1: 137
A2: gotocell | B2: c12017
A3: nextcell | B3: b11845
A4: INF copyrf | B4: i12:ae149
A5: dejKN
B8: d11724
A11: Step:
A12: 1 | Q12: =(IF($E145<>0,$J$2,IF($I145<>0,$J$2,""))) -> 
A13: 2 | Q13: =(IF($E145<>0,$J$2,IF($I145<>0,$J$2,""))) -> 
A14: 3 | I14: =$B$7 -> 0 | Q14: =(IF($E145<>0,$J$2,IF($I145<>0,$J$2,""))) -> 
A15: 4 | L15: за периода от | M15: до | Q15: =(IF($E145<>0,$J$2,IF($I145<>0,$J$2,""))) -> 
A16: 5 | I16: =$B$9 -> 0 | L16: =$E$9 -> 00:00:00 | M16: =$F$9 -> 00:00:00 | Q16: =(IF($E145<>0,$J$2,IF($I145<>0,$J$2,""))) -> 
A17: 6 | I17: =$B$10 -> 0 | M17: =$F$10 -> 0 | Q17: =(IF($E145<>0,$J$2,IF($I145<>0,$J$2,""))) -> 
A18: 7 | Q18: =(IF($E145<>0,$J$2,IF($I145<>0,$J$2,""))) -> 
A19: 8 | I19: =$B$12 -> 0 | L19: код : | M19: =$F$12 -> 0 | Q19: =(IF($E145<>0,$J$2,IF($I145<>0,$J$2,""))) -> 
A20: 9 | I20: =$B$13 -> 0 | L20: (по ЕБК) | Q20: =(IF($E145<>0,$J$2,IF($I145<>0,$J$2,""))) -> 
A21: 10 | Q21: =(IF($E145<>0,$J$2,IF($I145<>0,$J$2,""))) -> 
A22: 11 | P22: (в лева) | Q22: =(IF($E145<>0,$J$2,IF($I145<>0,$J$2,""))) ->  | S22: І. Информация за задължения | V22: (в лева) | X22: ІІ. Информация за поети ангажименти | AA22: (в лева) | AD22: (в лева)
A23: 12 | K23: II.1. РАЗХОДИ ПО ДЕЙНОСТИ | M23: Бюджет | Q23: =(IF($E145<>0,$J$2,IF($I145<>0,$J$2,""))) ->  | S23: Налични към 31.12.2021 г. задължения | T23: Възникнали през 2022 г. задължения | U23: Платени през 2022 г. задължения | V23: Неплатени задължения към края на периода | X23: Налични ангажименти към 31.12.2021 г. | Y23: Поети ангажименти през 2022 г. | Z23: Реализирани/из-пълнени през 2022 г. ангажименти | AA23: Налични ангажименти към края на отчетния период. | AB23: От тях подлежащи на плащане през:
A24: 13 | I24: §§ | J24: под-§§ | K24: НАИМЕНОВАНИЯ НА ПАРАГРАФИТЕ И ПОДПАРАГРАФИТЕ | M24: държавни дейности | N24: местни дейности | O24: дофинансиране | P24: Общо | Q24: =(IF($E145<>0,$J$2,IF($I145<>0,$J$2,""))) ->  | AB24: =$C$3 -> 0 | AC24: =$C$3+1 -> 1 | AD24: =CONCATENATE("след ",$C$3+1) -> след 1 | AE24: Контрола
A25: 14 | K25: 02 ¦ | Q25: =(IF($E145<>0,$J$2,IF($I145<>0,$J$2,""))) ->  | S25: І. (а) | T25: І. (б) | U25: І. (в) | V25: І. (г) | X25: ІІ. (1) | Y25: ІІ. (2) | Z25: ІІ. (3) | AA25: ІІ. (4) | AB25: ІІ (4а) | AC25: ІІ (4б) | AD25: ІІ(4в) | AE25: (5)
A26: 15 | J26: =VLOOKUP(K26,OP_LIST2,2,FALSE) -> 0 | K26: ИЗБЕРЕТЕ ОПЕРАТИВНА ПРОГРАМА | Q26: =(IF($E145<>0,$J$2,IF($I145<>0,$J$2,""))) ->  | S26: попълва се на ръка | T26: попълва се на ръка | U26: формула = колона (2) Отчет | V26: формула = І. (а) + І. (б) - І. (в) | X26: попълва се на ръка | Y26: попълва се на ръка | Z26: формула (логическа) - изчислява по-голямото число от колоните (2) "Отчет" и (І(б)+І(а)) | AA26: формула = ІІ. (1) + ІІ. (2) - ІІ. (3) | AB26: попълва се на ръка | AC26: попълва се на ръка | AD26: попълва се на ръка | AE26: Формула = + ІІ. (4) - ІІ. (4а) - ІІ. (4б) - ІІ. (4в) = 0, при коректно попълване на данните
A27: 16 | J27: =VLOOKUP(K28,EBK_DEIN2,2,FALSE) -> 0 | K27: <------ ДЕЙНОСТ - код по ЕБК | Q27: =(IF($E145<>0,$J$2,IF($I145<>0,$J$2,""))) -> 
A28: 17 | K28: ИЗБЕРЕТЕ ДЕЙНОСТ | Q28: =(IF($E145<>0,$J$2,IF($I145<>0,$J$2,""))) ->  | V28: =SUMIF(V31:V32,"<0")+SUMIF(V34:V38,"<0")+SUMIF(V40:V47,"<0")+SUMIF(V49:V65,"<0")+SUMIF(V71:V75,"<0")+SUMIF(V77:V82,"<0")+SUMIF(V85:V91,"<0")+SUMIF(V98:V99,"<0")+SUMIF(V102:V107,"<0")+SUMIF(V109:V114,"<0")+SUMIF(V118,"<0")+SUMIF(V120:V126,"<0")+SUMIF(V128:V130,"<0")+SUMIF(V132:V135,"<0")+SUMIF(V137:V138,"<0")+SUMIF(V141,"<0") -> 0 | AA28: =SUMIF(AA31:AA32,"<0")+SUMIF(AA34:AA38,"<0")+SUMIF(AA40:AA47,"<0")+SUMIF(AA49:AA65,"<0")+SUMIF(AA71:AA75,"<0")+SUMIF(AA77:AA82,"<0")+SUMIF(AA85:AA91,"<0")+SUMIF(AA98:AA99,"<0")+SUMIF(AA102:AA107,"<0")+SUMIF(AA109:AA114,"<0")+SUMIF(AA118,"<0")+SUMIF(AA120:AA126,"<0")+SUMIF(AA128:AA130,"<0")+SUMIF(AA132:AA135,"<0")+SUMIF(AA137:AA138,"<0")+SUMIF(AA141,"<0") -> 0
A29: 18 | K29: (наименование на дейността) | Q29: =(IF($E145<>0,$J$2,IF($I145<>0,$J$2,""))) -> 
A30: 19 | I30: 100 | J30: Заплати и възнаграждения за персонала, нает по трудови и служебни правоотношения | M30: =SUM(M31:M32) -> 0 | N30: =SUM(N31:N32) -> 0 | O30: =SUM(O31:O32) -> 0 | P30: =SUM(P31:P32) -> 0 | Q30: =(IF($E30<>0,$J$2,IF($I30<>0,$J$2,""))) -> 0 | S30: =SUM(S31:S32) -> 0 | T30: =SUM(T31:T32) -> 0 | U30: =SUM(U31:U32) -> 0 | V30: =SUM(V31:V32) -> 0 | AE30: =AA30-AB30-AC30-AD30 -> 0
A31: 20 | J31: 101 | K31: заплати и възнаграждения на персонала нает по трудови правоотношения | P31: =M31+N31+O31 -> 0 | U31: =P31 -> 0 | V31: =S31+T31-U31 -> 0 | AE31: =AA31-AB31-AC31-AD31 -> 0
A32: 21 | J32: 102 | K32: заплати и възнаграждения на персонала нает по служебни правоотношения | P32: =M32+N32+O32 -> 0 | U32: =P32 -> 0 | V32: =S32+T32-U32 -> 0 | AE32: 0
A33: 22 | I33: 200 | J33: Други възнаграждения и плащания за персонала | M33: =SUM(M34:M38) -> 0 | N33: =SUM(N34:N38) -> 0 | O33: =SUM(O34:O38) -> 0 | P33: =SUM(P34:P38) -> 0 | Q33: 0 | S33: =SUM(S34:S38) -> 0 | T33: =SUM(T34:T38) -> 0 | U33: =SUM(U34:U38) -> 0 | V33: =SUM(V34:V38) -> 0 | AE33: 0
A34: 23 | J34: 201 | K34: за нещатен персонал нает по трудови правоотношения | P34: =M34+N34+O34 -> 0 | U34: =P34 -> 0 | V34: 0 | AE34: 0
A35: 24 | J35: 202 | K35: за персонала по извънтрудови правоотношения | P35: =M35+N35+O35 -> 0 | U35: =P35 -> 0 | V35: 0 | AE35: 0
A36: 25 | J36: 205 | K36: изплатени суми от СБКО за облекло и други на персонала, с характер на възнаграждение | P36: =M36+N36+O36 -> 0 | U36: =P36 -> 0 | V36: 0 | AE36: 0
A37: 26 | J37: 208 | K37: обезщетения за персонала, с характер на възнаграждение | P37: =M37+N37+O37 -> 0 | U37: =P37 -> 0 | V37: 0 | AE37: 0
A38: 27 | J38: 209 | K38: другиплащания и възнаграждения | P38: =M38+N38+O38 -> 0 | U38: =P38 -> 0 | V38: 0 | AE38: 0
A39: 28 | I39: 500 | J39: Задължителни осигурителни вноски от работодатели | M39: =SUM(M40:M46) -> 0 | N39: =SUM(N40:N46) -> 0 | O39: =SUM(O40:O46) -> 0 | P39: =SUM(P40:P46) -> 0 | Q39: 0 | S39: =SUM(S40:S46) -> 0 | T39: =SUM(T40:T46) -> 0 | U39: =SUM(U40:U46) -> 0 | V39: =SUM(V40:V46) -> 0 | AE39: 0
A40: 29 | J40: 551 | K40: осигурителни вноски от работодатели за Държавното обществено осигуряване (ДОО) | P40: =M40+N40+O40 -> 0 | U40: =P40 -> 0 | V40: 0 | AE40: 0
A41: 30 | J41: 552 | K41: осигурителни вноски от работодатели за Учителския пенсионен фонд (УПФ) | P41: 0 | U41: 0 | V41: 0 | AE41: 0
A42: 31 | J42: 558 | K42: вноски по чл. 4б и 4в от КСО за сметка на осигурителя | M42: 0 | N42: 0 | O42: 0 | P42: =M42+N42+O42 -> 0 | U42: =P42 -> 0 | V42: =S42+T42-U42 -> 0 | AE42: =AA42-AB42-AC42-AD42 -> 0
A43: 32 | J43: 560 | K43: здравно-осигурителни вноски от работодатели | P43: 0 | U43: 0 | V43: 0 | AE43: 0
A44: 33 | J44: 580 | K44: вноски за допълнително задължително осигуряване от работодатели | P44: 0 | U44: 0 | V44: 0 | AE44: 0
A45: 34 | J45: 588 | K45: коректив на вноски за ДЗПО за сумите по чл. 4б и 4в от КСО за сметка на осигурителя | M45: 0 | N45: 0 | O45: 0 | P45: =M45+N45+O45 -> 0 | U45: =P45 -> 0 | V45: =S45+T45-U45 -> 0 | AE45: =AA45-AB45-AC45-AD45 -> 0
A46: 35 | J46: 590 | K46: задължителни вноски за чуждестранни пенсионни фондове и схеми за сметка на осигурителя | P46: 0 | U46: 0 | V46: 0 | AE46: 0
A47: 36 | I47: 800 | J47: Вноски за доброволно осигуряване | P47: 0 | Q47: 0 | U47: 0 | V47: 0 | AE47: 0
A48: 37 | I48: 1000 | J48: Издръжка | M48: =SUM(M49:M65) -> 0 | N48: =SUM(N49:N65) -> 0 | O48: =SUM(O49:O65) -> 0 | P48: =SUM(P49:P65) -> 0 | Q48: 0 | S48: =SUM(S49:S65) -> 0 | T48: =SUM(T49:T65) -> 0 | U48: =SUM(U49:U65) -> 0 | V48: =SUM(V49:V65) -> 0 | X48: =SUM(X49:X65) -> 0 | Y48: 0 | Z48: 0 | AA48: 0 | AB48: 0 | AC48: 0 | AD48: 0 | AE48: 0
A49: 38 | J49: 1011 | K49: Храна | P49: =M49+N49+O49 -> 0 | U49: =P49 -> 0 | V49: 0 | Z49: =+IF(+(S49+T49)>=P49,+T49,+(+P49-S49)) -> 0 | AA49: =X49+Y49-Z49 -> 0 | AE49: 0
A50: 39 | J50: 1012 | K50: Медикаменти | P50: 0 | U50: 0 | V50: 0 | Z50: 0 | AA50: =X50+Y50-Z50 -> 0 | AE50: 0
A51: 40 | J51: 1013 | K51: Постелен инвентар и облекло | P51: 0 | U51: 0 | V51: 0 | Z51: 0 | AA51: 0 | AE51: 0
A52: 41 | J52: 1014 | K52: Учебни и научно-изследователски разходи и книги за библиотеките | P52: 0 | U52: 0 | V52: 0 | Z52: 0 | AA52: 0 | AE52: 0
A53: 42 | J53: 1015 | K53: материали | P53: 0 | U53: 0 | V53: 0 | Z53: 0 | AA53: 0 | AE53: 0
A54: 43 | J54: 1016 | K54: вода, горива и енергия | P54: 0 | U54: 0 | V54: 0 | Z54: 0 | AA54: 0 | AE54: 0
A55: 44 | J55: 1020 | K55: разходи за външни услуги | P55: 0 | U55: 0 | V55: 0 | Z55: 0 | AA55: 0 | AE55: 0
A56: 45 | J56: 1030 | K56: Текущ ремонт | P56: 0 | U56: 0 | V56: 0 | Z56: 0 | AA56: 0 | AE56: 0
A57: 46 | J57: 1051 | K57: командировки в страната | P57: 0 | U57: 0 | V57: 0 | AE57: 0
A58: 47 | J58: 1052 | K58: краткосрочни командировки в чужбина | P58: 0 | U58: 0 | V58: 0 | AE58: 0
A59: 48 | J59: 1053 | K59: дългосрочни командировки в чужбина | P59: 0 | U59: 0 | V59: 0 | AE59: 0
A60: 49 | J60: 1062 | K60: разходи за застраховки | P60: 0 | U60: 0 | V60: 0 | Z60: =+IF(+(S60+T60)>=P60,+T60,+(+P60-S60)) -> 0 | AA60: =X60+Y60-Z60 -> 0 | AE60: 0
A61: 50 | J61: 1063 | K61: такса ангажимент по заеми | P61: 0 | U61: 0 | V61: 0 | AE61: 0
A62: 51 | J62: 1069 | K62: други финансови услуги | P62: 0 | U62: 0 | V62: 0 | Z62: =+IF(+(S62+T62)>=P62,+T62,+(+P62-S62)) -> 0 | AA62: =X62+Y62-Z62 -> 0 | AE62: 0
A63: 52 | J63: 1091 | K63: други разходи за СБКО (тук се отчитат разходите за СБКО, неотчетени по други позиции на ЕБК) | P63: 0 | U63: 0 | V63: 0 | Z63: =+IF(+(S63+T63)>=P63,+T63,+(+P63-S63)) -> 0 | AA63: =X63+Y63-Z63 -> 0 | AE63: 0
A64: 53 | J64: 1092 | K64: разходи за договорни санкции и неустойки, съдебни обезщетения и разноски | P64: 0 | Q64: =(IF($E64<>0,$J$2,IF($I64<>0,$J$2,""))) ->  | U64: 0 | V64: 0 | AE64: 0
A65: 54 | J65: 1098 | K65: други разходи, некласифицирани в другите параграфи и подпараграфи | P65: 0 | U65: 0 | V65: 0 | Z65: =+IF(+(S65+T65)>=P65,+T65,+(+P65-S65)) -> 0 | AA65: =X65+Y65-Z65 -> 0 | AE65: 0
A66: 55 | I66: 1900 | J66: Платени данъци, такси и административни санкции | M66: =SUM(M67:M69) -> 0 | N66: =SUM(N67:N69) -> 0 | O66: =SUM(O67:O69) -> 0 | P66: =SUM(P67:P69) -> 0 | Q66: 0 | S66: =SUM(S67:S69) -> 0 | T66: =SUM(T67:T69) -> 0 | U66: =SUM(U67:U69) -> 0 | V66: =SUM(V67:V69) -> 0 | AE66: =AA66-AB66-AC66-AD66 -> 0
A67: 56 | J67: 1901 | K67: платени държавни данъци, такси, наказателни лихви и административни санкции | P67: =M67+N67+O67 -> 0 | U67: =P67 -> 0 | V67: =S67+T67-U67 -> 0 | AE67: =AA67-AB67-AC67-AD67 -> 0
A68: 57 | J68: 1981 | K68: платени общински данъци, такси, наказателни лихви и административни санкции | P68: =M68+N68+O68 -> 0 | U68: =P68 -> 0 | V68: =S68+T68-U68 -> 0 | AE68: =AA68-AB68-AC68-AD68 -> 0
A69: 58 | J69: 1991 | K69: платени данъци, такси, наказателни лихви и административни санкции в чужбина | P69: =M69+N69+O69 -> 0 | U69: =P69 -> 0 | V69: =S69+T69-U69 -> 0 | AE69: =AA69-AB69-AC69-AD69 -> 0
A70: 59 | I70: 2100 | J70: Разходи за лихви по емисии на държавни (общински) ценни книжа | M70: =SUM(M71:M75) -> 0 | N70: =SUM(N71:N75) -> 0 | O70: =SUM(O71:O75) -> 0 | P70: =SUM(P71:P75) -> 0 | Q70: 0 | S70: =SUM(S71:S75) -> 0 | T70: =SUM(T71:T75) -> 0 | U70: =SUM(U71:U75) -> 0 | V70: =SUM(V71:V75) -> 0 | AE70: 0
A71: 60 | J71: 2110 | K71: лихви по държавни (общински) ценни книжа | P71: =M71+N71+O71 -> 0 | U71: =P71 -> 0 | V71: 0 | AE71: 0
A72: 61 | J72: 2120 | K72: отстъпки по държавни (общински) ценни книжа | P72: =M72+N72+O72 -> 0 | U72: =P72 -> 0 | V72: 0 | AE72: 0
A73: 62 | J73: 2125 | K73: лихви и отстъпки по целеви емисии на държавни ценни книжа | M73: 0 | N73: 0 | O73: 0 | P73: =M73+N73+O73 -> 0 | U73: =P73 -> 0 | V73: 0 | AE73: 0
A74: 63 | J74: 2140 | K74: лихви по държавни ценни книжа, емитирани за структурната реформа | M74: 0 | N74: 0 | O74: 0 | P74: =M74+N74+O74 -> 0 | U74: =P74 -> 0 | V74: 0 | AE74: 0
A75: 64 | J75: 2190 | K75: премии над номинала от емисии на държавни (общински) ценни книжа (-) | P75: =M75+N75+O75 -> 0 | U75: =P75 -> 0 | V75: 0 | AE75: 0
A76: 65 | I76: 2200 | J76: Разходи за лихви по заеми от страната | M76: =SUM(M77:M78) -> 0 | N76: =SUM(N77:N78) -> 0 | O76: =SUM(O77:O78) -> 0 | P76: =SUM(P77:P78) -> 0 | Q76: 0 | S76: =SUM(S77:S78) -> 0 | T76: =SUM(T77:T78) -> 0 | U76: =SUM(U77:U78) -> 0 | V76: =SUM(V77:V78) -> 0 | AE76: 0
A77: 66 | J77: 2221 | K77: Разходи за лихви по заеми от банки в страната | P77: =M77+N77+O77 -> 0 | U77: =P77 -> 0 | V77: =S77+T77-U77 -> 0 | AE77: 0
A78: 67 | J78: 2224 | K78: Разходи за лихви по други заеми от страната | P78: 0 | U78: 0 | V78: 0 | AE78: 0
A79: 68 | I79: 2500 | J79: Разходи за лихви по заеми от други държави | P79: 0 | Q79: 0 | U79: 0 | V79: 0 | AE79: 0
A80: 69 | I80: 2600 | J80: Разходи за лихви по заеми от международни организации и институции | P80: 0 | Q80: 0 | U80: 0 | V80: 0 | AE80: 0
A81: 70 | I81: 2700 | J81: Разходи за лихви по заеми от банки и други финансови институции от чужбина | P81: 0 | Q81: 0 | U81: 0 | V81: 0 | AE81: 0
A82: 71 | I82: 2800 | J82: Разходи за лихви и отстъпки по облигации, емитирани и търгувани на международните капиталови пазари | P82: 0 | Q82: 0 | U82: 0 | V82: 0 | AE82: 0
A83: 72 | I83: 2900 | J83: Други разходи за лихви | M83: =SUM(M84:M91) -> 0 | N83: =SUM(N84:N91) -> 0 | O83: =SUM(O84:O91) -> 0 | P83: =SUM(P84:P91) -> 0 | Q83: 0 | S83: =SUM(S84:S91) -> 0 | T83: =SUM(T84:T91) -> 0 | U83: =SUM(U84:U91) -> 0 | V83: =SUM(V84:V91) -> 0 | AE83: 0
A84: 73 | J84: 2910 | K84: Платени лихви по финансов лизинг и търговски кредит | P84: =M84+N84+O84 -> 0 | U84: =P84 -> 0 | V84: =S84+T84-U84 -> 0 | AE84: =AA84-AB84-AC84-AD84 -> 0
A85: 74 | J85: 2920 | K85: Платени лихви по активирани гаранции по заеми от банки в страната | P85: =M85+N85+O85 -> 0 | U85: =P85 -> 0 | V85: =S85+T85-U85 -> 0 | AE85: 0
A86: 75 | J86: 2969 | K86: Платени лихви по активирани гаранции по заеми от международни организации и институции | P86: 0 | U86: 0 | V86: 0 | AE86: 0
A87: 76 | J87: 2970 | K87: Платени лихви по активирани гаранции по заеми от банки и финансови институции от чужбина | P87: 0 | U87: 0 | V87: 0 | AE87: 0
A88: 77 | J88: 2989 | K88: Възстановени суми по платени лихви по активирани гаранции (-) | P88: 0 | U88: 0 | V88: 0 | AE88: 0
A89: 78 | J89: 2990 | K89: Платени лихви по заеми, предоставени от централния бюджет и бюджетни организации | P89: =M89+N89+O89 -> 0 | U89: =P89 -> 0 | V89: =S89+T89-U89 -> 0 | AE89: =AA89-AB89-AC89-AD89 -> 0
A90: 79 | J90: 2991 | K90: Други разходи за лихви към местни лица | P90: 0 | U90: 0 | V90: 0 | AE90: 0
A91: 80 | J91: 2992 | K91: Други разходи за лихви към чуждестранни лица | P91: 0 | U91: 0 | V91: 0 | AE91: 0
A92: 81 | I92: 3300 | J92: Вноска в общия бюджет на Европейския съюз | M92: 0 | N92: 0 | O92: 0 | P92: =SUM(P93:P97) -> 0 | Q92: 0 | AE92: 0
A93: 82 | J93: 3301 | K93: ресурс на база брутен национален доход | M93: 0 | N93: 0 | O93: 0 | P93: =M93+N93+O93 -> 0 | AE93: 0
A94: 83 | J94: 3302 | K94: ресурс на база данък върху добавената стойност | M94: 0 | N94: 0 | O94: 0 | P94: 0 | AE94: 0
A95: 84 | J95: 3304 | K95: традиционни собствени ресурси - мита | M95: 0 | N95: 0 | O95: 0 | P95: 0 | AE95: 0
A96: 85 | J96: 3306 | K96: участие във финансирането на брутното намаление за Нидерландия, Швеция, Дания и Австрия | M96: 0 | N96: 0 | O96: 0 | P96: 0 | AE96: 0
A97: 86 | J97: 3307 | K97: ресурс на база нерециклираните отпадъци от опаковки от пластмаса | M97: 0 | N97: 0 | O97: 0 | P97: 0 | Q97: =(IF($E97<>0,$J$2,IF($I97<>0,$J$2,""))) ->  | AE97: =AA97-AB97-AC97-AD97 -> 0
A98: 87 | I98: 3900 | J98: Здравно-осигурителни плащания | M98: 0 | N98: 0 | O98: 0 | P98: 0 | Q98: 0 | U98: =P98 -> 0 | V98: =S98+T98-U98 -> 0 | Z98: =+IF(+(S98+T98)>=P98,+T98,+(+P98-S98)) -> 0 | AA98: =X98+Y98-Z98 -> 0 | AE98: 0
A99: 88 | I99: 4000 | J99: Стипендии | P99: 0 | Q99: 0 | U99: 0 | V99: =S99+T99-U99 -> 0 | AE99: 0
A100: 89 | I100: 4100 | J100: Пенсии | M100: 0 | N100: 0 | O100: 0 | P100: 0 | Q100: 0 | AE100: 0
A101: 90 | I101: 4200 | J101: Текущи трансфери, обезщетения и помощи за домакинствата | M101: =SUM(M102:M107) -> 0 | N101: =SUM(N102:N107) -> 0 | O101: =SUM(O102:O107) -> 0 | P101: =SUM(P102:P107) -> 0 | Q101: 0 | S101: =SUM(S102:S107) -> 0 | T101: =SUM(T102:T107) -> 0 | U101: =SUM(U102:U107) -> 0 | V101: =SUM(V102:V107) -> 0 | X101: =SUM(X102:X107) -> 0 | Y101: 0 | Z101: 0 | AA101: 0 | AB101: 0 | AC101: 0 | AD101: 0 | AE101: 0
A102: 91 | J102: 4201 | K102: обезщетения и помощи по социалното осигуряване | P102: =M102+N102+O102 -> 0 | U102: 0 | V102: =S102+T102-U102 -> 0 | Z102: =+IF(+(S102+T102)>=P102,+T102,+(+P102-S102)) -> 0 | AA102: =X102+Y102-Z102 -> 0 | AE102: 0
A103: 92 | J103: 4202 | K103: обезщетения и помощи по социалното подпомагане | P103: 0 | U103: 0 | V103: 0 | Z103: 0 | AA103: 0 | AE103: 0
A104: 93 | J104: 4214 | K104: обезщетения и помощи по решение на общинския съвет | P104: 0 | U104: 0 | V104: 0 | Z104: 0 | AA104: 0 | AE104: 0
A105: 94 | J105: 4217 | K105: текущи трансфери за домакинства от средства на Европейския съюз | P105: 0 | U105: 0 | V105: 0 | Z105: 0 | AA105: 0 | AE105: 0
A106: 95 | J106: 4218 | K106: текущи трансфери за домакинства по други международни програми и споразумения | P106: 0 | U106: 0 | V106: 0 | Z106: 0 | AA106: 0 | AE106: 0
A107: 96 | J107: 4219 | K107: други текущи трансфери за домакинствата | P107: 0 | U107: 0 | V107: 0 | Z107: 0 | AA107: 0 | AE107: 0
A108: 97 | I108: 4300 | J108: Субсидии и други текущи трансфери за нефинансови предприятия | M108: =SUM(M109:M111) -> 0 | N108: =SUM(N109:N111) -> 0 | O108: =SUM(O109:O111) -> 0 | P108: =SUM(P109:P111) -> 0 | Q108: 0 | S108: =SUM(S109:S111) -> 0 | T108: =SUM(T109:T111) -> 0 | U108: =SUM(U109:U111) -> 0 | V108: =SUM(V109:V111) -> 0 | X108: =SUM(X109:X111) -> 0 | Y108: 0 | Z108: 0 | AA108: 0 | AB108: 0 | AC108: 0 | AD108: 0 | AE108: 0
A109: 98 | J109: 4301 | K109: за текуща дейност | P109: =M109+N109+O109 -> 0 | U109: 0 | V109: =S109+T109-U109 -> 0 | Z109: =+IF(+(S109+T109)>=P109,+T109,+(+P109-S109)) -> 0 | AA109: =X109+Y109-Z109 -> 0 | AE109: 0
A110: 99 | J110: 4302 | K110: за осъществяване на болнична помощ | P110: 0 | U110: 0 | V110: 0 | Z110: 0 | AA110: 0 | AE110: 0
A111: 100 | J111: 4309 | K111: други субсидии и плащания | P111: 0 | U111: 0 | V111: 0 | Z111: 0 | AA111: 0 | AE111: 0
A112: 101 | I112: 4400 | J112: Субсидии и други текущи трансфери за финансови институции | P112: 0 | Q112: 0 | U112: 0 | V112: 0 | Z112: 0 | AA112: 0 | AE112: 0
A113: 102 | I113: 4500 | J113: Субсидии и други текущи трансфери за юридически лица с нестопанска цел | P113: 0 | Q113: 0 | U113: 0 | V113: 0 | Z113: 0 | AA113: 0 | AE113: 0
A114: 103 | I114: 4600 | J114: Разходи за членски внос и участие в нетърговски организации и дейности | P114: 0 | Q114: 0 | U114: 0 | V114: 0 | Z114: 0 | AA114: 0 | AE114: 0
A115: 104 | I115: 4900 | J115: Предоставени текущи и капиталови трансфери за чужбина | M115: =+M116+M117 -> 0 | N115: =+N116+N117 -> 0 | O115: =+O116+O117 -> 0 | P115: =+P116+P117 -> 0 | Q115: 0 | AE115: 0
A116: 105 | J116: 4901 | K116: текущи трансфери за чужбина | P116: =M116+N116+O116 -> 0 | AE116: 0
A117: 106 | J117: 4902 | K117: капиталови трансфери за чужбина | P117: =M117+N117+O117 -> 0 | AE117: 0
A118: 107 | I118: 5100 | J118: Основен ремонт на дълготрайни материални активи | P118: =M118+N118+O118 -> 0 | Q118: 0 | U118: 0 | V118: =S118+T118-U118 -> 0 | Z118: =+IF(+(S118+T118)>=P118,+T118,+(+P118-S118)) -> 0 | AA118: =X118+Y118-Z118 -> 0 | AE118: 0
A119: 108 | I119: 5200 | J119: Придобиване на дълготрайни материални активи | M119: =SUM(M120:M126) -> 0 | N119: =SUM(N120:N126) -> 0 | O119: =SUM(O120:O126) -> 0 | P119: =SUM(P120:P126) -> 0 | Q119: 0 | S119: =SUM(S120:S126) -> 0 | T119: =SUM(T120:T126) -> 0 | U119: =SUM(U120:U126) -> 0 | V119: =SUM(V120:V126) -> 0 | X119: =SUM(X120:X126) -> 0 | Y119: 0 | Z119: 0 | AA119: 0 | AB119: 0 | AC119: 0 | AD119: 0 | AE119: 0
A120: 109 | J120: 5201 | K120: придобиване на компютри и хардуер | P120: =M120+N120+O120 -> 0 | U120: 0 | V120: =S120+T120-U120 -> 0 | Z120: =+IF(+(S120+T120)>=P120,+T120,+(+P120-S120)) -> 0 | AA120: =X120+Y120-Z120 -> 0 | AE120: 0
A121: 110 | J121: 5202 | K121: придобиване на сгради | P121: 0 | U121: 0 | V121: 0 | Z121: 0 | AA121: 0 | AE121: 0
A122: 111 | J122: 5203 | K122: придобиване на друго оборудване, машини и съоръжения | P122: 0 | U122: 0 | V122: 0 | Z122: 0 | AA122: 0 | AE122: 0
A123: 112 | J123: 5204 | K123: придобиване на транспортни средства | P123: 0 | U123: 0 | V123: 0 | Z123: 0 | AA123: 0 | AE123: 0
A124: 113 | J124: 5205 | K124: придобиване на стопански инвентар | P124: 0 | U124: 0 | V124: 0 | Z124: 0 | AA124: 0 | AE124: 0
A125: 114 | J125: 5206 | K125: изграждане на инфраструктурни обекти | P125: 0 | U125: 0 | V125: 0 | Z125: 0 | AA125: 0 | AE125: 0
A126: 115 | J126: 5219 | K126: придобиване на други ДМА | P126: 0 | U126: 0 | V126: 0 | Z126: 0 | AA126: 0 | AE126: 0
A127: 116 | I127: 5300 | J127: Придобиване на нематериални дълготрайни активи | M127: =SUM(M128:M129) -> 0 | N127: =SUM(N128:N129) -> 0 | O127: =SUM(O128:O129) -> 0 | P127: =SUM(P128:P129) -> 0 | Q127: 0 | S127: =SUM(S128:S129) -> 0 | T127: =SUM(T128:T129) -> 0 | U127: =SUM(U128:U129) -> 0 | V127: =SUM(V128:V129) -> 0 | X127: =SUM(X128:X129) -> 0 | Y127: 0 | Z127: 0 | AA127: 0 | AB127: 0 | AC127: 0 | AD127: 0 | AE127: 0
A128: 117 | J128: 5301 | K128: придобиване на програмни продукти и лицензи за програмни продукти | P128: =M128+N128+O128 -> 0 | U128: 0 | V128: =S128+T128-U128 -> 0 | Z128: =+IF(+(S128+T128)>=P128,+T128,+(+P128-S128)) -> 0 | AA128: =X128+Y128-Z128 -> 0 | AE128: 0
A129: 118 | J129: 5309 | K129: придобиване на други нематериални дълготрайни активи | P129: =M129+N129+O129 -> 0 | Q129: =(IF($E129<>0,$J$2,IF($I129<>0,$J$2,""))) ->  | U129: 0 | V129: =S129+T129-U129 -> 0 | Z129: =+IF(+(S129+T129)>=P129,+T129,+(+P129-S129)) -> 0 | AA129: =X129+Y129-Z129 -> 0 | AE129: 0
A130: 119 | I130: 5400 | J130: Придобиване на земя | P130: =M130+N130+O130 -> 0 | Q130: 0 | U130: 0 | V130: =S130+T130-U130 -> 0 | Z130: =+IF(+(S130+T130)>=P130,+T130,+(+P130-S130)) -> 0 | AA130: =X130+Y130-Z130 -> 0 | AE130: 0
A131: 120 | I131: 5500 | J131: Капиталови трансфери | M131: =SUM(M132:M135) -> 0 | N131: =SUM(N132:N135) -> 0 | O131: =SUM(O132:O135) -> 0 | P131: =SUM(P132:P135) -> 0 | Q131: 0 | S131: =SUM(S132:S135) -> 0 | T131: =SUM(T132:T135) -> 0 | U131: =SUM(U132:U135) -> 0 | V131: =SUM(V132:V135) -> 0 | X131: =SUM(X132:X135) -> 0 | Y131: 0 | Z131: 0 | AA131: 0 | AB131: 0 | AC131: 0 | AD131: 0 | AE131: 0
A132: 121 | J132: 5501 | K132: капиталови трансфери за нефинансови предприятия | P132: =M132+N132+O132 -> 0 | U132: 0 | V132: =S132+T132-U132 -> 0 | Z132: =+IF(+(S132+T132)>=P132,+T132,+(+P132-S132)) -> 0 | AA132: =X132+Y132-Z132 -> 0 | AE132: 0
A133: 122 | J133: 5502 | K133: капиталови трансфери за финансови институции | P133: =M133+N133+O133 -> 0 | U133: 0 | V133: =S133+T133-U133 -> 0 | Z133: =+IF(+(S133+T133)>=P133,+T133,+(+P133-S133)) -> 0 | AA133: =X133+Y133-Z133 -> 0 | AE133: 0
A134: 123 | J134: 5503 | K134: капиталови трансфери за организации с нестопанска цел | P134: =M134+N134+O134 -> 0 | U134: 0 | V134: =S134+T134-U134 -> 0 | Z134: =+IF(+(S134+T134)>=P134,+T134,+(+P134-S134)) -> 0 | AA134: =X134+Y134-Z134 -> 0 | AE134: 0
A135: 124 | J135: 5504 | K135: капиталови трансфери за домакинствата | P135: =M135+N135+O135 -> 0 | U135: 0 | V135: =S135+T135-U135 -> 0 | Z135: =+IF(+(S135+T135)>=P135,+T135,+(+P135-S135)) -> 0 | AA135: =X135+Y135-Z135 -> 0 | AE135: 0
A136: 125 | I136: 5700 | J136: Прираст на държавния резерв и изкупуване на земеделска продукция (включва и 40-71) | M136: 0 | N136: 0 | O136: 0 | P136: =SUM(P137:P139) -> 0 | Q136: 0 | S136: =SUM(S137:S139) -> 0 | T136: =SUM(T137:T139) -> 0 | U136: =SUM(U137:U138) -> 0 | V136: =SUM(V137:V139) -> 0 | X136: =SUM(X137:X139) -> 0 | Y136: =SUM(Y137:Y139) -> 0 | Z136: =SUM(Z137:Z139) -> 0 | AA136: =SUM(AA137:AA139) -> 0 | AB136: =SUM(AB137:AB139) -> 0 | AC136: =SUM(AC137:AC138) -> 0 | AD136: =SUM(AD137:AD139) -> 0 | AE136: 0
A137: 126 | J137: 5701 | K137: плащания за попълване на държавния резерв | M137: 0 | N137: 0 | O137: 0 | P137: =M137+N137+O137 -> 0 | U137: 0 | V137: =S137+T137-U137 -> 0 | Z137: =+IF(+(S137+T137)>=P137,+T137,+(+P137-S137)) -> 0 | AA137: =X137+Y137-Z137 -> 0 | AE137: 0
A138: 127 | J138: 5702 | K138: плащания за изкупуване на земеделска продукция | M138: 0 | N138: 0 | O138: 0 | P138: =M138+N138+O138 -> 0 | U138: 0 | V138: =S138+T138-U138 -> 0 | Z138: =+IF(+(S138+T138)>=P138,+T138,+(+P138-S138)) -> 0 | AA138: =X138+Y138-Z138 -> 0 | AE138: 0
A139: 128 | J139: 4071 | K139: постъпления от продажба на държавния резерв (-) | M139: 0 | N139: 0 | O139: 0 | P139: =M139+N139+O139 -> 0 | AE139: 0
A140: 129
A141: 130 | I141: 98 | J141: Резерв за непредвидени и неотложни разходи | P141: =M141+N141+O141 -> 0 | Q141: 0 | U141: 0 | V141: =S141+T141-U141 -> 0 | Z141: =+IF(+(S141+T141)>=P141,+T141,+(+P141-S141)) -> 0 | AA141: =X141+Y141-Z141 -> 0 | AE141: 0
A142: 131 | J142: - Използва се само като планов показател от ЦБ, ВСС, НОИ, НЗОК и общините.
A143: 132 | J143: По тази позиция не може да има суми по отчет. Ползването на тези средства следва да се отчита
A144: 133 | J144: по съответните разходни параграфи и дейности в резултат на промяна по бюджета.
A145: 134 | J145: 99-99 | K145: II. ОБЩО РАЗХОДИ РЕКАПИТУЛАЦИЯ | M145: =SUM(M30,M33,M39,M47,M48,M66,M70,M76,M79,M80,M81,M82,M83,M92,M98,M99,M100,M101,M108,M112,M113,M114,M115,M118,M119,M127,M130,M131,M136)+M141 -> 0 | N145: =SUM(N30,N33,N39,N47,N48,N66,N70,N76,N79,N80,N81,N82,N83,N92,N98,N99,N100,N101,N108,N112,N113,N114,N115,N118,N119,N127,N130,N131,N136)+N141 -> 0 | O145: =SUM(O30,O33,O39,O47,O48,O66,O70,O76,O79,O80,O81,O82,O83,O92,O98,O99,O100,O101,O108,O112,O113,O114,O115,O118,O119,O127,O130,O131,O136)+O141 -> 0 | P145: =SUM(P30,P33,P39,P47,P48,P66,P70,P76,P79,P80,P81,P82,P83,P92,P98,P99,P100,P101,P108,P112,P113,P114,P115,P118,P119,P127,P130,P131,P136)+P141 -> 0 | R145: =LEFT(J27,1) -> 0 | S145: =SUM(S30,S33,S39,S47,S48,S66,S70,S76,S79,S80,S81,S82,S83,S92,S98,S99,S100,S101,S108,S112,S113,S114,S115,S118,S119,S127,S130,S131,S136)+S141 -> 0 | T145: =SUM(T30,T33,T39,T47,T48,T66,T70,T76,T79,T80,T81,T82,T83,T92,T98,T99,T100,T101,T108,T112,T113,T114,T115,T118,T119,T127,T130,T131,T136)+T141 -> 0 | U145: =SUM(U30,U33,U39,U47,U48,U66,U70,U76,U79,U80,U81,U82,U83,U92,U98,U99,U100,U101,U108,U112,U113,U114,U115,U118,U119,U127,U130,U131,U136)+U141 -> 0 | V145: =SUM(V30,V33,V39,V47,V48,V66,V70,V76,V79,V80,V81,V82,V83,V92,V98,V99,V100,V101,V108,V112,V113,V114,V115,V118,V119,V127,V130,V131,V136)+V141 -> 0 | X145: =SUM(X30,X33,X39,X47,X48,X66,X70,X76,X79,X80,X81,X82,X83,X92,X98,X99,X100,X101,X108,X112,X113,X114,X115,X118,X119,X127,X130,X131,X136)+X141 -> 0 | Y145: 0 | Z145: 0 | AA145: 0 | AB145: 0 | AC145: 0 | AD145: 0 | AE145: =AA145-AB145-AC145-AD145 -> 0
A146: 135 | I146: край на дейност | Q146: =Q145 -> 
A147: 136 | Q147: =Q145 -> 
Q148: =(IF(L145<>0,$G$2,IF(P145<>0,$G$2,""))) -> 
Q149: =(IF(L146<>0,$G$2,IF(P146<>0,$G$2,""))) -> 
Q150: =(IF(L145<>0,$G$2,IF(P145<>0,$G$2,""))) -> 
Q151: =(IF(L145<>0,$G$2,IF(P145<>0,$G$2,""))) -> 
Q152: =(IF(L145<>0,$G$2,IF(P145<>0,$G$2,""))) -> 
Q153: =(IF(L145<>0,$G$2,IF(P145<>0,$G$2,""))) -> 
Q154: =(IF(L145<>0,$G$2,IF(P145<>0,$G$2,""))) -> 

Sheet list (hidden)
A1: Name: | B1: SMETKA
A2: 0 | B2: ОТЧЕТНИ ДАННИ ПО ЕБК ЗА ИЗПЪЛНЕНИЕТО НА БЮДЖЕТА | C2: ОТЧЕТ ЗА КАСОВОТО ИЗПЪЛНЕНИЕ НА БЮДЖЕТА
A3: 33 | B3: ОТЧЕТНИ ДАННИ ПО ЕБК ЗА СМЕТКИТЕ ЗА ЧУЖДИ СРЕДСТВА | C3: ОТЧЕТ ЗА КАСОВОТО ИЗПЪЛНЕНИЕ НА СМЕТКИТЕ ЗА ЧУЖДИ СРЕДСТВА
A4: 42 | B4: ОТЧЕТНИ ДАННИ ПО ЕБК ЗА СМЕТКИТЕ ЗА СРЕДСТВАТА ОТ ЕВРОПЕЙСКИЯ СЪЮЗ - РА | C4: ОТЧЕТ ЗА КАСОВОТО ИЗПЪЛНЕНИЕ НА СМЕТКИТЕ ЗА СРЕДСТВАТА ОТ ЕВРОПЕЙСКИЯ СЪЮЗ - РА
A5: 96 | B5: ОТЧЕТНИ ДАННИ ПО ЕБК ЗА СМЕТКИТЕ ЗА СРЕДСТВАТА ОТ ЕВРОПЕЙСКИЯ СЪЮЗ - ДЕС | C5: ОТЧЕТ ЗА КАСОВОТО ИЗПЪЛНЕНИЕ НА СМЕТКИТЕ ЗА СРЕДСТВАТА ОТ ЕВРОПЕЙСКИЯ СЪЮЗ - ДЕС
A6: 97 | B6: ОТЧЕТНИ ДАННИ ПО ЕБК ЗА СМЕТКИТЕ ЗА СРЕДСТВАТА ОТ ЕВРОПЕЙСКИЯ СЪЮЗ - ДМП | C6: ОТЧЕТ ЗА КАСОВОТО ИЗПЪЛНЕНИЕ НА СМЕТКИТЕ ЗА СРЕДСТВАТА ОТ ЕВРОПЕЙСКИЯ СЪЮЗ - ДМП
A7: 98 | B7: ОТЧЕТНИ ДАННИ ПО ЕБК ЗА СМЕТКИТЕ ЗА СРЕДСТВАТА ОТ ЕВРОПЕЙСКИЯ СЪЮЗ - КСФ | C7: ОТЧЕТ ЗА КАСОВОТО ИЗПЪЛНЕНИЕ НА СМЕТКИТЕ ЗА СРЕДСТВАТА ОТ ЕВРОПЕЙСКИЯ СЪЮЗ - КСФ
A10: Name: | B10: "EBK_DEIN" и "EBK_DEIN2"
B11: ИЗБЕРЕТЕ ДЕЙНОСТ
A12: 1101 | B12: 101 Централни държавни органи | C12: 1101
A13: 1103 | B13: 103 Централни държавни органи по образованието | C13: 1103
A14: 1104 | B14: 104 Централни държавни органи по здравеопазването | C14: 1104
A15: 1105 | B15: 105 Централни държавни органи по социалното осигуряването | C15: 1105
A16: 1106 | B16: 106 Централни държавни органи по регионалното развитие и благоустройство | C16: 1106
A17: 1107 | B17: 107 Централни държавни органи по културата и спорта | C17: 1107
A18: 1108 | B18: 108 Централни държавни органи по икономическите дейности и услуги | C18: 1108
A19: 1111 | B19: 111 Контролни органи | C19: 1111
A20: 1115 | B20: 115 Управление, контрол и регулиране на външните работи | C20: 1115
A21: 1116 | B21: 116 Посолства, консулства, представителства и мисии в чужбина | C21: 1116
A22: 1117 | B22: 117 Държавни и общински служби и дейности по изборите | C22: 1117
A23: 1121 | B23: 121 Областни администрации | C23: 1121
A24: 1122 | B24: 122 Общинска администрация | C24: 1122
A25: 1123 | B25: 123 Общински съвети | C25: 1123
A26: 1125 | B26: 125 Членове на Европейския парламент от Република България | C26: 1125
A27: 1128 | B27: 128 Международни програми и споразумения, дарения и помощи от чужбина | C27: 1128
A28: 1139 | B28: 139 Други изпълнителни и законодателни органи | C28: 1139
A29: 1141 | B29: 141 Статистически институт,служби и дейности,социологически проучвания и анкети | C29: 1141
A30: 1142 | B30: 142 Общоикономическо и социално програмиране и прогнозиране | C30: 1142
A31: 1143 | B31: 143 Регистрация и контрол на чуждестранните инвестиции | C31: 1143
A32: 1144 | B32: 144 Служби и дейности за връзки с българите в чужбина | C32: 1144
A33: 1145 | B33: 145 Служби и дейности за подпомагане на бежанците | C33: 1145
A34: 1146 | B34: 146 Управление и администриране на получена чуждестранна помощ | C34: 1146
A35: 1147 | B35: 147 Управление на държавния резерв и военновременните запаси | C35: 1147
A36: 1148 | B36: 148 Управление на гражд.администрация и административнообслужване на населението | C36: 1148
A37: 1149 | B37: 149 Други общи служби | C37: 1149
A38: 1151 | B38: 151 Ликвидационна комисия за закрити бюджетни организации | C38: 1151
A39: 1158 | B39: 158 Международни програми и споразумения, дарения и помощи от чужбина | C39: 1158
A40: 1161 | B40: 161 Организация и управление на научните изследвания и дейности | C40: 1161
A41: 1162 | B41: 162 Научноизследователско дело | C41: 1162
A42: 1163 | B42: 163 Научноизследователски институти и центрове | C42: 1163
A43: 1168 | B43: 168 Международни програми и споразумения, дарения и помощи от чужбина | C43: 1168
A44: 1179 | B44: 179 Други дейности на науката | C44: 1179
A45: 2201 | B45: 201 Дейности по отбраната | C45: 2201
A46: 2205 | B46: 205 Участие на Република България в НАТО | C46: 2205
A47: 2206 | B47: 206 Мироопазващи мисии в чужбина | C47: 2206
A48: 2215 | B48: 215 Приложни научни изследвания в областта на отбраната | C48: 2215
A49: 2218 | B49: 218 Международни програми и споразумения, дарения и помощи от чужбина | C49: 2218
A50: 2219 | B50: 219 Други дейности по отбраната | C50: 2219
A51: 2221 | B51: 221 Полиция и вътрешен ред | C51: 2221
A52: 2222 | B52: 222 Национална служба за охрана | C52: 2222
A53: 2223 | B53: 223 Държавна агенция "Разузнаване" | C53: 2223
A54: 2224 | B54: 224 Противопожарна охрана | C54: 2224
A55: 2225 | B55: 225 Приложни научни изследвания в областта на вътрешния ред и сигурност | C55: 2225
A56: 2228 | B56: 228 Международни програми и споразумения, дарения и помощи от чужбина | C56: 2228
A57: 2239 | B57: 239 Други дейности по вътрешната сигурност | C57: 2239
A58: 2241 | B58: 241 Висш съдебен съвет | C58: 2241
A59: 2242 | B59: 242 Върховен административен съд | C59: 2242
A60: 2243 | B60: 243 Върховен касационен съд | C60: 2243
A61: 2244 | B61: 244 Прокуратура | C61: 2244
A62: 2245 | B62: 245 Национална следствена служба | C62: 2245
A63: 2246 | B63: 246 Съдилища | C63: 2246
A64: 2247 | B64: 247 Окръжни следствени служби | C64: 2247
A65: 2248 | B65: 248 Инспекторат към Висшия съдебен съвет | C65: 2248
A66: 2249 | B66: 249 Национален институт на правосъдието | C66: 2249
A67: 2258 | B67: 258 Международни програми и споразумения, дарения и помощи от чужбина | C67: 2258
A68: 2259 | B68: 259 Други дейности на съдебната власт | C68: 2259
A69: 2261 | B69: 261 Места за лишаване от свобода | C69: 2261
A70: 2268 | B70: 268 Международни програми и споразумения, дарения и помощи от чужбина | C70: 2268
A71: 2279 | B71: 279 Други дейности на администрацията на затворите | C71: 2279
A72: 2281 | B72: 281 Неотложна дейност по защита на населението и националното стопанство | C72: 2281
A73: 2282 | B73: 282 Отбранително-мобилизационна подготовка, поддържане на запаси и мощности | C73: 2282
A74: 2283 | B74: 283 Превантивна дейност за намаляване на вредните последствия от бедствия и аварии | C74: 2283
A75: 2284 | B75: 284 Ликвидиране на последици от стихийни бедствия и производствени аварии | C75: 2284
A76: 2285 | B76: 285 Доброволни формирования за защита при бедствия | C76: 2285
A77: 2288 | B77: 288 Международни програми и споразумения, дарения и помощи от чужбина | C77: 2288
A78: 2289 | B78: 289 Други дейности за защита на населението при стихийни бедствия и аварии | C78: 2289
A79: 3301 | B79: 301 Управление, контрол, регулиране и лицензиране на дейности по образованието | C79: 3301
A80: 3311 | B80: 311 Детски градини | C80: 3311
A81: 3312 | B81: 312 Специални групи в детски градини за деца със СОП | C81: 3312
A82: 3318 | B82: 318 Подготвителна група в училище | C82: 3318
A83: 3321 | B83: 321 Специални училища и центрове за специална образователна подкрепа | C83: 3321
A84: 3322 | B84: 322 Неспециализирани училища, без професионални гимназии | C84: 3322
A85: 3323 | B85: 323 Училища по културата и училища по изкуствата | C85: 3323
A86: 3324 | B86: 324 Спортни училища | C86: 3324
A87: 3325 | B87: 325 Български училища в чужбина | C87: 3325
A88: 3326 | B88: 326 Професионални гимназии и паралелки за професионална подготовка | C88: 3326
A89: 3327 | B89: 327 Училища в места за лишаване от свобода | C89: 3327
A90: 3332 | B90: 332 Общежития | C90: 3332
A91: 3333 | B91: 333 Ученически почивни лагери | C91: 3333
A92: 3334 | B92: 334 Повишаване на квалификацията | C92: 3334
A93: 3336 | B93: 336 Столове | C93: 3336
A94: 3337 | B94: 337 Център за подкрепа за личностно развитие | C94: 3337
A95: 3338 | B95: 338 Ресурсно подпомагане | C95: 3338
A96: 3341 | B96: 341 Академии, университети и висши училища | C96: 3341
A97: 3349 | B97: 349 Приложни научни изследвания в областта на образованието | C97: 3349
A98: 3359 | B98: 359 Други дейности за децата | C98: 3359
A99: 3369 | B99: 369 Други дейности за младежта | C99: 3369
A100: 3388 | B100: 388 Международни програми и споразумения, дарения и помощи от чужбина | C100: 3388
A101: 3389 | B101: 389 Други дейности по образованието | C101: 3389
A102: 4401 | B102: 401 Управление, контрол и регулиране на дейности по здравеопазването | C102: 4401
A103: 4412 | B103: 412 Многопрофилни болници за активно лечение | C103: 4412
A104: 4415 | B104: 415 Домове за медико-социални грижи | C104: 4415
A105: 4418 | B105: 418 Психиатрични болници | C105: 4418
A106: 4429 | B106: 429 Центрове за спешна медицинска помощ | C106: 4429
A107: 4431 | B107: 431 Детски ясли, детски кухни и яслени групи в детска градина | C107: 4431
A108: 4433 | B108: 433 Рехабилитация | C108: 4433
A109: 4436 | B109: 436 Национални центрове | C109: 4436
A110: 4437 | B110: 437 Здравен кабинет в детски градини и училища | C110: 4437
A111: 4448 | B111: 448 Центрове за комплексно обслужване на деца с увреждания и хронични заболявания | C111: 4448
A112: 4450 | B112: 450 Преобразувани лечебни заведения | C112: 4450
A113: 4451 | B113: 451 Плащания за първична извънболнична медицинска помощ | C113: 4451
A114: 4452 | B114: 452 Плащания за специализирана извънболнична медицинска помощ | C114: 4452
A115: 4453 | B115: 453 Плащания за дентална помощ | C115: 4453
A116: 4454 | B116: 454 Плащания за медико-диагностична дейност | C116: 4454
A117: 4455 | B117: 455 Плащания за лекарствени продукти, медицински изделия и диетични храни за специални медицински цели за домашно лечение на територията на страната | C117: 4455
A118: 4456 | B118: 456 Плащания за болнична медицинска помощ | C118: 4456
A119: 4457 | B119: 457 Плащания за медицински изделия прилагани в болничната медицинска помощ | C119: 4457
A120: 4458 | B120: 458 Плащания за лекарствени продукти в условия на болнична медицинска помощ | C120: 4458
A121: 4459 | B121: 459 Други здравноосигурителни плащания | C121: 4459
A122: 4465 | B122: 465 Приложни научни изследвания в областта на здравеопазването | C122: 4465
A123: 4467 | B123: 467 Национални програми | C123: 4467
A124: 4468 | B124: 468 Международни програми и споразумения, дарения и помощи от чужбина | C124: 4468
A125: 4469 | B125: 469 Други дейности по здравеопазването | C125: 4469
A126: 5501 | B126: 501 Пенсии | C126: 5501
A127: 5511 | B127: 511 Помощи по Закона за семейните помощи за деца | C127: 5511
A128: 5512 | B128: 512 Помощи по Закона за социално подпомагане | C128: 5512
A129: 5513 | B129: 513 Помощи по Закона за хората с увреждания | C129: 5513
A130: 5514 | B130: 514 Помощи за диагностика и лечение на социално слаби лица | C130: 5514
A131: 5515 | B131: 515 Помощи по Закона за закрила на детето | C131: 5515
A132: 5516 | B132: 516 Помощи по Закона за ветераните от войните на Република България | C132: 5516
A133: 5517 | B133: 517 Помощи по Закона за военноинвалидите и военнопострадалите | C133: 5517
A134: 5518 | B134: 518 Социални помощи и обезщетения по международни програми, помощи и дарения | C134: 5518
A135: 5519 | B135: 519 Други помощи и обезщетения | C135: 5519
A136: 5521 | B136: 521 Служби по социалното осигуряване (ДОО и др.) | C136: 5521
A137: 5522 | B137: 522 Дирекции за социално подпомагане | C137: 5522
A138: 5524 | B138: 524 Домашен социален патронаж | C138: 5524
A139: 5525 | B139: 525 Клубове на пенсионера, инвалида и др. | C139: 5525
A140: 5526 | B140: 526 Центрове за обществена подкрепа | C140: 5526
A141: 5527 | B141: 527 Звена "Майка и бебе" | C141: 5527
A142: 5528 | B142: 528 Център за работа с деца на улицата | C142: 5528
A143: 5529 | B143: 529 Кризисен център | C143: 5529
A144: 5530 | B144: 530 Център за настаняване от семеен тип | C144: 5530
A145: 5531 | B145: 531 Дейности за предотвратяване на трудови злополуки и професионални болести | C145: 5531
A146: 5532 | B146: 532 Програми за временна заетост | C146: 5532
A147: 5533 | B147: 533 Други програми и дейности за осигуряване на заетост | C147: 5533
A148: 5534 | B148: 534 Наблюдавани жилища | C148: 5534
A149: 5535 | B149: 535 Преходни жилища | C149: 5535
A150: 5538 | B150: 538 Програми за закрила на детето | C150: 5538
A151: 5540 | B151: 540 Домове за стари хора | C151: 5540
A152: 5541 | B152: 541 Домове за пълнолетни лица с увреждания | C152: 5541
A153: 5545 | B153: 545 Социални услуги в домашна среда | C153: 5545
A154: 5546 | B154: 546 Домове за деца | C154: 5546
A155: 5547 | B155: 547 Център за временно настаняване | C155: 5547
A156: 5548 | B156: 548 Дневни центрове за стари хора | C156: 5548
A157: 5550 | B157: 550 Центрове за социална рехабилитация и интеграция | C157: 5550
A158: 5551 | B158: 551 Дневни центрове за лица с увреждания | C158: 5551
A159: 5553 | B159: 553 Приюти | C159: 5553
A160: 5554 | B160: 554 Защитени жилища | C160: 5554
A161: 5556 | B161: 556 Приложни научни изследвания в областта на социалното осигуряване и подпомагане | C161: 5556
A162: 5561 | B162: 561 Асистентска подкрепа | C162: 5561
A163: 5562 | B163: 562 Асистенти за лична помощ | C163: 5562
A164: 5588 | B164: 588 Международни програми и споразумения, дарения и помощи от чужбина | C164: 5588
A165: 5589 | B165: 589 Други служби и дейности по социалното осигуряване, подпомагане и заетостта | C165: 5589
A166: 6601 | B166: 601 Управление, контрол и регулиране на дейностите по жил. строителство и териториално развитие | C166: 6601
A167: 6602 | B167: 602 Служби по кадастър, геодезия и регистрация на недвижимата собственост | C167: 6602
A168: 6603 | B168: 603 Водоснабдяване и канализация | C168: 6603
A169: 6604 | B169: 604 Осветление на улици и площади | C169: 6604
A170: 6605 | B170: 605 Минерални води и бани | C170: 6605
A171: 6606 | B171: 606 Изграждане, ремонт и поддържане на уличната мрежа | C171: 6606
A172: 6618 | B172: 618 Международни програми и споразумения, дарения и помощи от чужбина | C172: 6618
A173: 6619 | B173: 619 Други дейности по жилищното строителство, благоустройството и регионалното развитие | C173: 6619
A174: 6621 | B174: 621 Управление, контрол и регулиране на дейностите по опазване на околната среда | C174: 6621
A175: 6622 | B175: 622 Озеленяване | C175: 6622
A176: 6623 | B176: 623 Чистота | C176: 6623
A177: 6624 | B177: 624 Геозащита | C177: 6624
A178: 6625 | B178: 625 Приложни и научни изследвания в областта на опазване на околната среда | C178: 6625
A179: 6626 | B179: 626 Пречистване на отпадъчните води от населените места | C179: 6626
A180: 6627 | B180: 627 Управление на дейностите по отпадъците | C180: 6627
A181: 6628 | B181: 628 Международни програми и споразумения, дарения и помощи от чужбина | C181: 6628
A182: 6629 | B182: 629 Други дейности по опазване на околната среда | C182: 6629
A183: 7701 | B183: 701 Дейности по почивното дело и социалния отдих | C183: 7701
A184: 7708 | B184: 708 Международни програми и споразумения, дарения и помощи от чужбина | C184: 7708
A185: 7711 | B185: 711 Управление, контрол и регулиране на дейностите по спорта | C185: 7711
A186: 7712 | B186: 712 Детски и специализирани спортни школи | C186: 7712
A187: 7713 | B187: 713 Спорт за всички | C187: 7713
A188: 7714 | B188: 714 Спортни бази за спорт за всички | C188: 7714
A189: 7718 | B189: 718 Международни програми и споразумения, дарения и помощи от чужбина | C189: 7718
A190: 7719 | B190: 719 Други дейности по спорта и физическата култура | C190: 7719
A191: 7731 | B191: 731 Управление, контрол и регулиране на дейностите по културата | C191: 7731
A192: 7732 | B192: 732 Културни дейности | C192: 7732
A193: 7733 | B193: 733 Български културни институти в чужбина | C193: 7733
A194: 7735 | B194: 735 Театри | C194: 7735
A195: 7736 | B195: 736 Оперно - филхармонични дружества и опери | C195: 7736
A196: 7737 | B196: 737 Оркестри и ансамбли | C196: 7737
A197: 7738 | B197: 738 Читалища | C197: 7738
A198: 7739 | B198: 739 Музеи, худ. галерии, паметници на културата и етногр. комплекси с национален и регионален харакер | C198: 7739
A199: 7740 | B199: 740 Музеи, художествени галерии, паметници на културата и етнографски комплекси с местен харакер | C199: 7740
A200: 7741 | B200: 741 Радиотранслационни възли | C200: 7741
A201: 7742 | B201: 742 Радио | C201: 7742
A202: 7743 | B202: 743 Телевизия | C202: 7743
... 529 more rows
